{"text_format":"1","workbook":"xlsx","n_sheets":6,"sheets":["Li-Ionen","Salz","Andere","Sprachen","Export","Referenz"],"not_rendered":{"charts":0,"images":0,"macros":0,"external_links":0,"defined_names":13,"comments":0,"pivot_tables":0},"unopened":[],"bounds":{"document_bytes":16777216,"sheet_cells":100000,"rows_first":2000,"rows_last":500,"rows_between":2000,"halvings":0,"cell_chars":16384,"cell_head_chars":4096},"cells_cut":0,"cells_raw":0,"read":"whole","date_system":"1900"}

{"sheet":"Li-Ionen","index":0,"n_rows":58,"n_cols":12,"rows_kept":58,"cut":false,"hidden":false,"merged":[[59,1,59,6],[54,1,54,6],[55,1,55,6],[56,1,56,6],[0,6,0,7],[4,1,4,3],[5,1,5,3],[6,1,6,3],[7,1,7,3],[8,1,8,3],[9,1,9,3],[21,4,21,6],[22,4,22,6]]}
[{"$f":"IF(Sprache=\"deutsch\",Sprachen!A2,IF(Sprache=\"Français\",Sprachen!B2,Sprachen!C2))","v":"Statistik Sonnenenergie"},null,null,null,"Sprache/Langue/Lingua","Deutsch",{"$f":"Jahr","v":2023},null,{"$f":"IF(Sprache=\"deutsch\",Sprachen!A81,IF(Sprache=\"Français\",Sprachen!B81,Sprachen!C81))","v":"Falls Fehler, hier angezeigt:"},"ausblenden"]
[{"$f":"IF(Sprache=\"deutsch\",Sprachen!A3,IF(Sprache=\"Français\",Sprachen!B3,Sprachen!C3))&\" - \"&IF(Sprache=\"deutsch\",Sprachen!A4,IF(Sprache=\"Français\",Sprachen!B4,Sprachen!C4))","v":"Elektrische Speichersysteme - Systeme mit Li-Ionen Speicher"},null,null,null,null,null,null,{"$f":"IF(Referenz!B9+Referenz!B11+Referenz!B12+Referenz!B10+Referenz!B14+Referenz!B14=6,IF(Sprache=\"Deutsch\",Sprachen!$A$72,IF(Sprache=\"Français\",Sprachen!$B$72,Sprachen!$C$72)),IF(Sprache=\"Deutsch\",Sprachen!$A$73,IF(Sprache=\"Français\",Sprachen!$B$73,Sprachen!$C$73)))","v":"Status ok"}]
[null,null,null,null,null,null,null,null,{"$f":"IF(Referenz!B9,\"\",IF(Sprache=\"deutsch\",Sprachen!A75,IF(Sprache=\"Français\",Sprachen!B75,Sprachen!C75)))","v":""}]
[{"$f":"IF(Sprache=\"deutsch\",Sprachen!A7,IF(Sprache=\"Français\",Sprachen!B7,Sprachen!C7))","v":"Unternehmen"},null,null,null,null,null,null,null,{"$f":"IF(Referenz!B10,\"\",IF(Sprache=\"deutsch\",Sprachen!A76,IF(Sprache=\"Français\",Sprachen!B76,Sprachen!C76)))","v":""}]
[{"$f":"IF(Sprache=\"deutsch\",Sprachen!A8,IF(Sprache=\"Français\",Sprachen!B8,Sprachen!C8))","v":"Firma"},null,null,null,null,{"$f":"IF(Sprache=\"deutsch\",Sprachen!A14,IF(Sprache=\"Français\",Sprachen!B14,Sprachen!C14))","v":"Hersteller"},null,null,{"$f":"IF(Referenz!B11,\"\",IF(Sprache=\"deutsch\",Sprachen!A77,IF(Sprache=\"Français\",Sprachen!B77,Sprachen!C77)))","v":""}]
[{"$f":"IF(Sprache=\"deutsch\",Sprachen!A9,IF(Sprache=\"Français\",Sprachen!B9,Sprachen!C9))","v":"Strasse"},null,null,null,null,{"$f":"IF(Sprache=\"deutsch\",Sprachen!A15,IF(Sprache=\"Français\",Sprachen!B16,Sprachen!C15))","v":"Importeur"},null,null,{"$f":"IF(Referenz!B12,\"\",IF(Sprache=\"deutsch\",Sprachen!A78,IF(Sprache=\"Français\",Sprachen!B78,Sprachen!C78)))","v":""}]
[{"$f":"IF(Sprache=\"deutsch\",Sprachen!A10,IF(Sprache=\"Français\",Sprachen!B10,Sprachen!C10))","v":"PLZ/Ort"},null,null,null,null,{"$f":"IF(Sprache=\"deutsch\",Sprachen!A16,IF(Sprache=\"Français\",Sprachen!B16,Sprachen!C16))","v":"Handelsunternehmung"},null,null,{"$f":"IF(Referenz!B13,\"\",IF(Sprache=\"deutsch\",Sprachen!A79,IF(Sprache=\"Français\",Sprachen!B79,Sprachen!C79)))","v":""}]
[{"$f":"IF(Sprache=\"deutsch\",Sprachen!A11,IF(Sprache=\"Français\",Sprachen!B11,Sprachen!C11))","v":"Kontaktperson"},null,null,null,null,{"$f":"IF(Sprache=\"deutsch\",Sprachen!A17,IF(Sprache=\"Français\",Sprachen!B17,Sprachen!C17))","v":"Installateur"},null,null,{"$f":"IF(Referenz!B14,\"\",IF(Sprache=\"deutsch\",Sprachen!A80,IF(Sprache=\"Français\",Sprachen!B80,Sprachen!C80)))","v":""}]
[{"$f":"IF(Sprache=\"deutsch\",Sprachen!A12,IF(Sprache=\"Français\",Sprachen!B12,Sprachen!C12))","v":"Telefon"},null,null,null,null,{"$f":"IF(Sprache=\"deutsch\",Sprachen!A18,IF(Sprache=\"Français\",Sprachen!B18,Sprachen!C18))","v":"Andere"}]
[{"$f":"IF(Sprache=\"deutsch\",Sprachen!A13,IF(Sprache=\"Français\",Sprachen!B13,Sprachen!C13))","v":"E-Mail"}]
[]
[{"$f":"IF(Sprache=\"deutsch\",Sprachen!A68,IF(Sprache=\"Français\",Sprachen!B68,Sprachen!C68))","v":"        Ich habe keine Anlagen produziert, gehandelt oder installiert"}]
[]
[{"$f":"IF(Sprache=\"deutsch\",Sprachen!A19,IF(Sprache=\"Français\",Sprachen!B19,Sprachen!B19))","v":"Produktion & Handel"}]
[{"$f":"IF(Sprache=\"deutsch\",Sprachen!A20,IF(Sprache=\"Français\",Sprachen!B20,Sprachen!C20))","v":"1. Herkunft der Speichersysteme"},{"$f":"IF(Sprache=\"deutsch\",Sprachen!A28,IF(Sprache=\"Français\",Sprachen!B28,Sprachen!C28))","v":"Kapazität"},null,null,{"$f":"IF(Sprache=\"deutsch\",Sprachen!A29,IF(Sprache=\"Français\",Sprachen!B29,Sprachen!C29))","v":"2. Vertrieb der Speichersysteme"},null,{"$f":"IF(Sprache=\"deutsch\",Sprachen!A28,IF(Sprache=\"Français\",Sprachen!B28,Sprachen!C28))","v":"Kapazität"}]
[{"$f":"IF(Sprache=\"deutsch\",Sprachen!A21,IF(Sprache=\"Français\",Sprachen!B21,Sprachen!C21))","v":"(AC- und DC-gekoppelte Systeme)"},"[ kWh ]",null,null,{"$f":"IF(Sprache=\"deutsch\",Sprachen!A21,IF(Sprache=\"Français\",Sprachen!B21,Sprachen!C21))","v":"(AC- und DC-gekoppelte Systeme)"},null,"[ kWh ]"]
[{"$f":"IF(Sprache=\"deutsch\",Sprachen!A22,IF(Sprache=\"Français\",Sprachen!B22,Sprachen!C22))","v":"Eigenproduktion"},null,null,null,{"$f":"IF(Sprache=\"deutsch\",Sprachen!A30,IF(Sprache=\"Français\",Sprachen!B30,Sprachen!C30))","v":"an Bauherrschaft"}]
[{"$f":"IF(Sprache=\"deutsch\",Sprachen!A23,IF(Sprache=\"Français\",Sprachen!B23,Sprachen!C23))","v":"Bezug Schweiz"},null,null,null,{"$f":"IF(Sprache=\"deutsch\",Sprachen!A31,IF(Sprache=\"Français\",Sprachen!B31,Sprachen!C31))","v":"an Installateur (1)"}]
[{"$f":"IF(Sprache=\"deutsch\",Sprachen!A24,IF(Sprache=\"Français\",Sprachen!B24,Sprachen!C24))","v":"Import"},null,null,null,{"$f":"IF(Sprache=\"deutsch\",Sprachen!A32,IF(Sprache=\"Français\",Sprachen!B32,Sprachen!C32))","v":"an Handel (1)"}]
[{"$f":"IF(Sprache=\"deutsch\",Sprachen!A25,IF(Sprache=\"Français\",Sprachen!B25,Sprachen!C25))","v":"Summe Herkunft"},{"$f":"SUM(B17:B19)","v":0},null,null,{"$f":"IF(Sprache=\"deutsch\",Sprachen!A27,IF(Sprache=\"Français\",Sprachen!B27,Sprachen!C27))","v":"Summe Verkauf Schweiz"},null,{"$f":"SUM(G17:G19)","v":0}]
[{"$f":"IF(Sprache=\"deutsch\",Sprachen!A26,IF(Sprache=\"Français\",Sprachen!B26,Sprachen!C26))","v":"abzüglich Export"},null,null,null,{"$f":"IF(Sprache=\"deutsch\",Sprachen!A33,IF(Sprache=\"Français\",Sprachen!B33,Sprachen!C33))","v":"(1)  Bitte Wiederverkäufer angeben:"}]
[{"$f":"IF(Sprache=\"deutsch\",Sprachen!A27,IF(Sprache=\"Français\",Sprachen!B27,Sprachen!C27))","v":"Summe Verkauf Schweiz"},{"$f":"SUM(B20-B21)","v":0}]
[]
[]
[{"$f":"IF(Sprache=\"deutsch\",Sprachen!A34,IF(Sprache=\"Français\",Sprachen!B34,Sprachen!C34))","v":"Installation (nur in der Schweiz installierte Anlagen)"}]
[{"$f":"IF(Sprache=\"deutsch\",Sprachen!A35,IF(Sprache=\"Français\",Sprachen!B35,Sprachen!C35))","v":"3. Ort der Anlagen"},null,null,null,{"$f":"IF(Sprache=\"deutsch\",Sprachen!A52,IF(Sprache=\"Français\",Sprachen!B52,Sprachen!C52))","v":"6. Anlagen nach Anlagengrösse"}]
[null,{"$f":"IF(Sprache=\"deutsch\",Sprachen!A28,IF(Sprache=\"Français\",Sprachen!B28,Sprachen!C28))","v":"Kapazität"},{"$f":"IF(Sprache=\"deutsch\",Sprachen!A44,IF(Sprache=\"Français\",Sprachen!B44,Sprachen!C44))","v":"Anzahl"},null,null,{"$f":"IF(Sprache=\"deutsch\",Sprachen!A28,IF(Sprache=\"Français\",Sprachen!B28,Sprachen!C28))","v":"Kapazität"},{"$f":"IF(Sprache=\"deutsch\",Sprachen!A44,IF(Sprache=\"Français\",Sprachen!B44,Sprachen!C44))","v":"Anzahl"},null,null,{"$f":"SUM(J29:J42)","v":0},"Total Fehleranzahl"]
[null,"[ kWh ]",{"$f":"IF(Sprache=\"deutsch\",Sprachen!A45,IF(Sprache=\"Français\",Sprachen!B45,Sprachen!C45))","v":"Anlagen"},null,null,"[ kWh ]",{"$f":"IF(Sprache=\"deutsch\",Sprachen!A45,IF(Sprache=\"Français\",Sprachen!B45,Sprachen!C45))","v":"Anlagen"},null,null,"Fehler","Informationen für Prüfung"]
[{"$f":"IF(Sprache=\"deutsch\",Sprachen!A36,IF(Sprache=\"Français\",Sprachen!B36,Sprachen!C36))","v":"Einfamilienhäuser "},null,null,null,{"$f":"IF(Sprache=\"deutsch\",Sprachen!A53,IF(Sprache=\"Français\",Sprachen!B53,Sprachen!C53))","v":"                          bis       20 kWh"},null,null,null,{"$f":"IF(OR(ISBLANK(F29),ISBLANK(G29)),\"\",IF(AND(K29>L29,K29<=L30),\"\",IF(Sprache=\"deutsch\",Sprachen!A$80,IF(Sprache=\"Français\",Sprachen!$B$80,Sprachen!C$80))&\": \"&ROUND(K29,2)))","v":""},{"$f":"IF(OR(ISBLANK(F29),ISBLANK(G29)),0,(I29=\"\")-1)","v":0},{"$f":"F29/G29","v":{"$error":"#DIV/0!"}}]
[{"$f":"IF(Sprache=\"deutsch\",Sprachen!A37,IF(Sprache=\"Français\",Sprachen!B37,Sprachen!C37))","v":"Mehrfamilienhäuser "},null,null,null,{"$f":"IF(Sprache=\"deutsch\",Sprachen!A54,IF(Sprache=\"Français\",Sprachen!B54,Sprachen!C54))","v":"über     20 kWh  bis     100 kWh"},null,null,null,{"$f":"IF(OR(ISBLANK(F30),ISBLANK(G30)),\"\",IF(AND(K30>L30,K30<=L31),\"\",IF(Sprache=\"deutsch\",Sprachen!A$80,IF(Sprache=\"Français\",Sprachen!$B$80,Sprachen!C$80))&\": \"&ROUND(K30,1)))","v":""},{"$f":"IF(OR(ISBLANK(F30),ISBLANK(G30)),0,(I30=\"\")-1)","v":0},{"$f":"F30/G30","v":{"$error":"#DIV/0!"}},20]
[{"$f":"IF(Sprache=\"deutsch\",Sprachen!A38,IF(Sprache=\"Français\",Sprachen!B38,Sprachen!C38))","v":"Industrie, Gewerbe"},null,null,null,{"$f":"IF(Sprache=\"deutsch\",Sprachen!A55,IF(Sprache=\"Français\",Sprachen!B55,Sprachen!C55))","v":"über   100 kWh "},null,null,null,{"$f":"IF(OR(ISBLANK(F31),ISBLANK(G31)),\"\",IF(K31>L31,\"\",IF(Sprache=\"deutsch\",Sprachen!A$80,IF(Sprache=\"Français\",Sprachen!$B$80,Sprachen!C$80))&\": \"&ROUND(K31,1)))","v":""},{"$f":"IF(OR(ISBLANK(F31),ISBLANK(G31)),0,(I31=\"\")-1)","v":0},{"$f":"F31/G31","v":{"$error":"#DIV/0!"}},100]
[{"$f":"IF(Sprache=\"deutsch\",Sprachen!A39,IF(Sprache=\"Français\",Sprachen!B39,Sprachen!C39))","v":"Landwirtschaft"},null,null,null,{"$f":"IF(Sprache=\"deutsch\",Sprachen!A56,IF(Sprache=\"Français\",Sprachen!B56,Sprachen!C56))","v":"Total Anlagen"},{"$f":"SUM(F29:F31)","v":0},{"$f":"SUM(G29:G31)","v":0}]
[{"$f":"IF(Sprache=\"deutsch\",Sprachen!A40,IF(Sprache=\"Français\",Sprachen!B40,Sprachen!C40))","v":"Dienstleistung"}]
[{"$f":"IF(Sprache=\"deutsch\",Sprachen!A41,IF(Sprache=\"Français\",Sprachen!B41,Sprachen!C41))","v":"Öffentliche Dienste"}]
[{"$f":"IF(Sprache=\"deutsch\",Sprachen!A42,IF(Sprache=\"Français\",Sprachen!B42,Sprachen!C42))","v":"Verkehr"}]
[{"$f":"IF(Sprache=\"deutsch\",Sprachen!A43,IF(Sprache=\"Français\",Sprachen!B43,Sprachen!C43))","v":"Übrige Standorte"}]
[{"$f":"IF(Sprache=\"deutsch\",Sprachen!A56,IF(Sprache=\"Français\",Sprachen!B56,Sprachen!C56))","v":"Total Anlagen"},{"$f":"SUM(B29:B36)","v":0},{"$f":"SUM(C29:C36)","v":0}]
[]
[{"$f":"IF(Sprache=\"deutsch\",Sprachen!A46,IF(Sprache=\"Français\",Sprachen!B46,Sprachen!C46))","v":"4. Second Life Produkte"},null,null,null,{"$f":"IF(Sprache=\"deutsch\",Sprachen!A58,IF(Sprache=\"Français\",Sprachen!B58,Sprachen!C58))","v":"Bemerkungen"}]
[null,{"$f":"IF(Sprache=\"deutsch\",Sprachen!A28,IF(Sprache=\"Français\",Sprachen!B28,Sprachen!C28))","v":"Kapazität"},{"$f":"IF(Sprache=\"deutsch\",Sprachen!A44,IF(Sprache=\"Français\",Sprachen!B44,Sprachen!C44))","v":"Anzahl"}]
[null,"[ kWh ]",{"$f":"IF(Sprache=\"deutsch\",Sprachen!A45,IF(Sprache=\"Français\",Sprachen!B45,Sprachen!C45))","v":"Anlagen"}]
[{"$f":"IF(Sprache=\"deutsch\",Sprachen!A47,IF(Sprache=\"Français\",Sprachen!B47,Sprachen!C47))","v":"Neue Produkte"},{"$f":"B44-B43","v":0},{"$f":"C44-C43","v":0}]
[{"$f":"IF(Sprache=\"deutsch\",Sprachen!A48,IF(Sprache=\"Français\",Sprachen!B48,Sprachen!C48))","v":"Second Life Produkte"}]
[{"$f":"IF(Sprache=\"deutsch\",Sprachen!A56,IF(Sprache=\"Français\",Sprachen!B56,Sprachen!C56))","v":"Total Anlagen"},{"$f":"B37","v":0},{"$f":"C37","v":0}]
[]
[{"$f":"IF(Sprache=\"deutsch\",Sprachen!A49,IF(Sprache=\"Français\",Sprachen!B49,Sprachen!C49))","v":"5. Ersatzanlagen"}]
[null,{"$f":"IF(Sprache=\"deutsch\",Sprachen!A28,IF(Sprache=\"Français\",Sprachen!B28,Sprachen!C28))","v":"Kapazität"},{"$f":"IF(Sprache=\"deutsch\",Sprachen!A44,IF(Sprache=\"Français\",Sprachen!B44,Sprachen!C44))","v":"Anzahl"}]
[null,"[ kWh ]",{"$f":"IF(Sprache=\"deutsch\",Sprachen!A45,IF(Sprache=\"Français\",Sprachen!B45,Sprachen!C45))","v":"Anlagen"}]
[{"$f":"IF(Sprache=\"deutsch\",Sprachen!A50,IF(Sprache=\"Français\",Sprachen!B50,Sprachen!C50))","v":"Neuanlagen"},{"$f":"B51-B50","v":0},{"$f":"C51-C50","v":0}]
[{"$f":"IF(Sprache=\"deutsch\",Sprachen!A51,IF(Sprache=\"Français\",Sprachen!B51,Sprachen!C51))","v":"Ersetzte Anlagen"}]
[{"$f":"IF(Sprache=\"deutsch\",Sprachen!A57,IF(Sprache=\"Français\",Sprachen!B57,Sprachen!C57))","v":"Anzahl Systeme"},{"$f":"B44","v":0},{"$f":"C44","v":0}]
[]
[]
[{"$f":"IF(Sprache=\"deutsch\",Sprachen!A59,IF(Sprache=\"Français\",Sprachen!B59,Sprachen!C59))","v":"Grundsätze"}]
[{"$f":"IF(Sprache=\"deutsch\",Sprachen!A60,IF(Sprache=\"Français\",Sprachen!B60,Sprachen!C60))","v":"Datenschutz\n"},{"$f":"IF(Sprache=\"deutsch\",Sprachen!A64,IF(Sprache=\"Français\",Sprachen!B64,Sprachen!C64))","v":"Die Zahlen der einzelnen Firmen werden streng vertraulich behandelt. Sie sind lediglich den verantwortlichen Personen von Swissolar sowie dem Bundesamt für Energie, Sektion Analysen und Perspektiven, zugänglich."}]
[{"$f":"IF(Sprache=\"deutsch\",Sprachen!A61,IF(Sprache=\"Français\",Sprachen!B61,Sprachen!C61))","v":"Zeitpunkt"},{"$f":"IF(Sprache=\"deutsch\",Sprachen!A65,IF(Sprache=\"Français\",Sprachen!B65,Sprachen!C65))","v":"Massgebend für die Statistik ist der Zeitpunkt der Verkäufe und/oder Installationen im Jahre 2023."}]
[{"$f":"IF(Sprache=\"deutsch\",Sprachen!A62,IF(Sprache=\"Français\",Sprachen!B62,Sprachen!C62))","v":"Erhebungsgrössen"},{"$f":"IF(Sprache=\"deutsch\",Sprachen!A66,IF(Sprache=\"Français\",Sprachen!B66,Sprachen!C66))","v":"Für die Erhebung ist die Nennkapazität massgebend."}]
[{"$f":"IF(Sprache=\"deutsch\",Sprachen!A63,IF(Sprache=\"Français\",Sprachen!B63,Sprachen!C63))","v":"Rücksendung"},{"$f":"IF(Sprache=\"deutsch\",Sprachen!A67,IF(Sprache=\"Français\",Sprachen!B67,Sprachen!C67))","v":"Freitag, 09. Februar 2024 an marktumfrage@swissolar.ch"}]

{"sheet":"Salz","index":1,"n_rows":57,"n_cols":12,"rows_kept":57,"cut":false,"hidden":false,"merged":[[0,6,0,7],[58,1,58,6],[21,4,21,6],[22,4,22,6],[53,1,53,6],[54,1,54,6],[55,1,55,6]]}
[{"$f":"IF(Sprache=\"deutsch\",Sprachen!A2,IF(Sprache=\"Français\",Sprachen!B2,Sprachen!C2))","v":"Statistik Sonnenenergie"},null,null,null,"Sprache/Langue/Lingua","Deutsch",{"$f":"Jahr","v":2023},null,{"$f":"IF(Sprache=\"deutsch\",Sprachen!A81,IF(Sprache=\"Français\",Sprachen!B81,Sprachen!C81))","v":"Falls Fehler, hier angezeigt:"},"ausblenden"]
[{"$f":"IF(Sprache=\"deutsch\",Sprachen!A3,IF(Sprache=\"Français\",Sprachen!B3,Sprachen!C3))&\" - \"&IF(Sprache=\"deutsch\",Sprachen!A5,IF(Sprache=\"Français\",Sprachen!B5,Sprachen!C5))","v":"Elektrische Speichersysteme - Speichersysteme auf Salzbasis "},null,null,null,null,null,null,{"$f":"IF(Referenz!B9+Referenz!B11+Referenz!B12+Referenz!B10+Referenz!B14+Referenz!B14=6,IF(Sprache=\"Deutsch\",Sprachen!$A$72,IF(Sprache=\"Français\",Sprachen!$B$72,Sprachen!$C$72)),IF(Sprache=\"Deutsch\",Sprachen!$A$73,IF(Sprache=\"Français\",Sprachen!$B$73,Sprachen!$C$73)))","v":"Status ok"}]
[null,null,null,null,null,null,null,null,{"$f":"IF(Referenz!B17,\"\",IF(Sprache=\"deutsch\",Sprachen!A75,IF(Sprache=\"Français\",Sprachen!B75,Sprachen!C75)))","v":""}]
[{"$f":"IF(Sprache=\"deutsch\",Sprachen!A7,IF(Sprache=\"Français\",Sprachen!B7,Sprachen!C7))","v":"Unternehmen"},null,null,null,null,null,null,null,{"$f":"IF(Referenz!B18,\"\",IF(Sprache=\"deutsch\",Sprachen!A76,IF(Sprache=\"Français\",Sprachen!B76,Sprachen!C76)))","v":""}]
[{"$f":"IF(Sprache=\"deutsch\",Sprachen!A8,IF(Sprache=\"Français\",Sprachen!B8,Sprachen!C8))","v":"Firma"},{"$f":"IF('Li-Ionen'!B5<>\"\",'Li-Ionen'!B5,\"\")","v":""},null,null,null,{"$f":"IF(Sprache=\"deutsch\",Sprachen!A14,IF(Sprache=\"Français\",Sprachen!B14,Sprachen!C14))","v":"Hersteller"},null,null,{"$f":"IF(Referenz!B19,\"\",IF(Sprache=\"deutsch\",Sprachen!A77,IF(Sprache=\"Français\",Sprachen!B77,Sprachen!C77)))","v":""}]
[{"$f":"IF(Sprache=\"deutsch\",Sprachen!A9,IF(Sprache=\"Français\",Sprachen!B9,Sprachen!C9))","v":"Strasse"},{"$f":"IF('Li-Ionen'!B6<>\"\",'Li-Ionen'!B6,\"\")","v":""},null,null,null,{"$f":"IF(Sprache=\"deutsch\",Sprachen!A15,IF(Sprache=\"Français\",Sprachen!B16,Sprachen!C15))","v":"Importeur"},null,null,{"$f":"IF(Referenz!B20,\"\",IF(Sprache=\"deutsch\",Sprachen!A78,IF(Sprache=\"Français\",Sprachen!B78,Sprachen!C78)))","v":""}]
[{"$f":"IF(Sprache=\"deutsch\",Sprachen!A10,IF(Sprache=\"Français\",Sprachen!B10,Sprachen!C10))","v":"PLZ/Ort"},{"$f":"IF('Li-Ionen'!B7<>\"\",'Li-Ionen'!B7,\"\")","v":""},null,null,null,{"$f":"IF(Sprache=\"deutsch\",Sprachen!A16,IF(Sprache=\"Français\",Sprachen!B16,Sprachen!C16))","v":"Handelsunternehmung"},null,null,{"$f":"IF(Referenz!B21,\"\",IF(Sprache=\"deutsch\",Sprachen!A79,IF(Sprache=\"Français\",Sprachen!B79,Sprachen!C79)))","v":""}]
[{"$f":"IF(Sprache=\"deutsch\",Sprachen!A11,IF(Sprache=\"Français\",Sprachen!B11,Sprachen!C11))","v":"Kontaktperson"},{"$f":"IF('Li-Ionen'!B8<>\"\",'Li-Ionen'!B8,\"\")","v":""},null,null,null,{"$f":"IF(Sprache=\"deutsch\",Sprachen!A17,IF(Sprache=\"Français\",Sprachen!B17,Sprachen!C17))","v":"Installateur"},null,null,{"$f":"IF(Referenz!B22,\"\",IF(Sprache=\"deutsch\",Sprachen!A80,IF(Sprache=\"Français\",Sprachen!B80,Sprachen!C80)))","v":""}]
[{"$f":"IF(Sprache=\"deutsch\",Sprachen!A12,IF(Sprache=\"Français\",Sprachen!B12,Sprachen!C12))","v":"Telefon"},{"$f":"IF('Li-Ionen'!B9<>\"\",'Li-Ionen'!B9,\"\")","v":""},null,null,null,{"$f":"IF(Sprache=\"deutsch\",Sprachen!A18,IF(Sprache=\"Français\",Sprachen!B18,Sprachen!C18))","v":"Andere"}]
[{"$f":"IF(Sprache=\"deutsch\",Sprachen!A13,IF(Sprache=\"Français\",Sprachen!B13,Sprachen!C13))","v":"E-Mail"},{"$f":"IF('Li-Ionen'!B10<>\"\",'Li-Ionen'!B10,\"\")","v":""}]
[]
[{"$f":"IF(Sprache=\"deutsch\",Sprachen!A68,IF(Sprache=\"Français\",Sprachen!B68,Sprachen!C68))","v":"        Ich habe keine Anlagen produziert, gehandelt oder installiert"}]
[]
[{"$f":"IF(Sprache=\"deutsch\",Sprachen!A19,IF(Sprache=\"Français\",Sprachen!B19,Sprachen!B19))","v":"Produktion & Handel"}]
[{"$f":"IF(Sprache=\"deutsch\",Sprachen!A20,IF(Sprache=\"Français\",Sprachen!B20,Sprachen!C20))","v":"1. Herkunft der Speichersysteme"},{"$f":"IF(Sprache=\"deutsch\",Sprachen!A28,IF(Sprache=\"Français\",Sprachen!B28,Sprachen!C28))","v":"Kapazität"},null,null,{"$f":"IF(Sprache=\"deutsch\",Sprachen!A29,IF(Sprache=\"Français\",Sprachen!B29,Sprachen!C29))","v":"2. Vertrieb der Speichersysteme"},null,{"$f":"IF(Sprache=\"deutsch\",Sprachen!A28,IF(Sprache=\"Français\",Sprachen!B28,Sprachen!C28))","v":"Kapazität"}]
[{"$f":"IF(Sprache=\"deutsch\",Sprachen!A21,IF(Sprache=\"Français\",Sprachen!B21,Sprachen!C21))","v":"(AC- und DC-gekoppelte Systeme)"},"[ kWh ]",null,null,{"$f":"IF(Sprache=\"deutsch\",Sprachen!A21,IF(Sprache=\"Français\",Sprachen!B21,Sprachen!C21))","v":"(AC- und DC-gekoppelte Systeme)"},null,"[ kWh ]"]
[{"$f":"IF(Sprache=\"deutsch\",Sprachen!A22,IF(Sprache=\"Français\",Sprachen!B22,Sprachen!C22))","v":"Eigenproduktion"},null,null,null,{"$f":"IF(Sprache=\"deutsch\",Sprachen!A30,IF(Sprache=\"Français\",Sprachen!B30,Sprachen!C30))","v":"an Bauherrschaft"}]
[{"$f":"IF(Sprache=\"deutsch\",Sprachen!A23,IF(Sprache=\"Français\",Sprachen!B23,Sprachen!C23))","v":"Bezug Schweiz"},null,null,null,{"$f":"IF(Sprache=\"deutsch\",Sprachen!A31,IF(Sprache=\"Français\",Sprachen!B31,Sprachen!C31))","v":"an Installateur (1)"}]
[{"$f":"IF(Sprache=\"deutsch\",Sprachen!A24,IF(Sprache=\"Français\",Sprachen!B24,Sprachen!C24))","v":"Import"},null,null,null,{"$f":"IF(Sprache=\"deutsch\",Sprachen!A32,IF(Sprache=\"Français\",Sprachen!B32,Sprachen!C32))","v":"an Handel (1)"}]
[{"$f":"IF(Sprache=\"deutsch\",Sprachen!A25,IF(Sprache=\"Français\",Sprachen!B25,Sprachen!C25))","v":"Summe Herkunft"},{"$f":"SUM(B17:B19)","v":0},null,null,{"$f":"IF(Sprache=\"deutsch\",Sprachen!A27,IF(Sprache=\"Français\",Sprachen!B27,Sprachen!C27))","v":"Summe Verkauf Schweiz"},null,{"$f":"SUM(G17:G19)","v":0}]
[{"$f":"IF(Sprache=\"deutsch\",Sprachen!A26,IF(Sprache=\"Français\",Sprachen!B26,Sprachen!C26))","v":"abzüglich Export"},null,null,null,{"$f":"IF(Sprache=\"deutsch\",Sprachen!A33,IF(Sprache=\"Français\",Sprachen!B33,Sprachen!C33))","v":"(1)  Bitte Wiederverkäufer angeben:"}]
[{"$f":"IF(Sprache=\"deutsch\",Sprachen!A27,IF(Sprache=\"Français\",Sprachen!B27,Sprachen!C27))","v":"Summe Verkauf Schweiz"},{"$f":"SUM(B20-B21)","v":0}]
[]
[]
[{"$f":"IF(Sprache=\"deutsch\",Sprachen!A34,IF(Sprache=\"Français\",Sprachen!B34,Sprachen!C34))","v":"Installation (nur in der Schweiz installierte Anlagen)"}]
[{"$f":"IF(Sprache=\"deutsch\",Sprachen!A35,IF(Sprache=\"Français\",Sprachen!B35,Sprachen!C35))","v":"3. Ort der Anlagen"},null,null,null,{"$f":"IF(Sprache=\"deutsch\",Sprachen!A52,IF(Sprache=\"Français\",Sprachen!B52,Sprachen!C52))","v":"6. Anlagen nach Anlagengrösse"}]
[null,{"$f":"IF(Sprache=\"deutsch\",Sprachen!A28,IF(Sprache=\"Français\",Sprachen!B28,Sprachen!C28))","v":"Kapazität"},{"$f":"IF(Sprache=\"deutsch\",Sprachen!A44,IF(Sprache=\"Français\",Sprachen!B44,Sprachen!C44))","v":"Anzahl"},null,null,{"$f":"IF(Sprache=\"deutsch\",Sprachen!A28,IF(Sprache=\"Français\",Sprachen!B28,Sprachen!C28))","v":"Kapazität"},{"$f":"IF(Sprache=\"deutsch\",Sprachen!A44,IF(Sprache=\"Français\",Sprachen!B44,Sprachen!C44))","v":"Anzahl"},null,null,{"$f":"SUM(J29:J42)","v":0},"Total Fehleranzahl"]
[null,"[ kWh ]",{"$f":"IF(Sprache=\"deutsch\",Sprachen!A45,IF(Sprache=\"Français\",Sprachen!B45,Sprachen!C45))","v":"Anlagen"},null,null,"[ kWh ]",{"$f":"IF(Sprache=\"deutsch\",Sprachen!A45,IF(Sprache=\"Français\",Sprachen!B45,Sprachen!C45))","v":"Anlagen"},null,null,"Fehler","Informationen für Prüfung"]
[{"$f":"IF(Sprache=\"deutsch\",Sprachen!A36,IF(Sprache=\"Français\",Sprachen!B36,Sprachen!C36))","v":"Einfamilienhäuser "},null,null,null,{"$f":"IF(Sprache=\"deutsch\",Sprachen!A53,IF(Sprache=\"Français\",Sprachen!B53,Sprachen!C53))","v":"                          bis       20 kWh"},null,null,null,{"$f":"IF(OR(ISBLANK(F29),ISBLANK(G29)),\"\",IF(AND(K29>L29,K29<=L30),\"\",IF(Sprache=\"deutsch\",Sprachen!A$80,IF(Sprache=\"Français\",Sprachen!$B$80,Sprachen!C$80))&\": \"&ROUND(K29,2)))","v":""},{"$f":"IF(OR(ISBLANK(F29),ISBLANK(G29)),0,(I29=\"\")-1)","v":0},{"$f":"F29/G29","v":{"$error":"#DIV/0!"}}]
[{"$f":"IF(Sprache=\"deutsch\",Sprachen!A37,IF(Sprache=\"Français\",Sprachen!B37,Sprachen!C37))","v":"Mehrfamilienhäuser "},null,null,null,{"$f":"IF(Sprache=\"deutsch\",Sprachen!A54,IF(Sprache=\"Français\",Sprachen!B54,Sprachen!C54))","v":"über     20 kWh  bis     100 kWh"},null,null,null,{"$f":"IF(OR(ISBLANK(F30),ISBLANK(G30)),\"\",IF(AND(K30>L30,K30<=L31),\"\",IF(Sprache=\"deutsch\",Sprachen!A$80,IF(Sprache=\"Français\",Sprachen!$B$80,Sprachen!C$80))&\": \"&ROUND(K30,1)))","v":""},{"$f":"IF(OR(ISBLANK(F30),ISBLANK(G30)),0,(I30=\"\")-1)","v":0},{"$f":"F30/G30","v":{"$error":"#DIV/0!"}},20]
[{"$f":"IF(Sprache=\"deutsch\",Sprachen!A38,IF(Sprache=\"Français\",Sprachen!B38,Sprachen!C38))","v":"Industrie, Gewerbe"},null,null,null,{"$f":"IF(Sprache=\"deutsch\",Sprachen!A55,IF(Sprache=\"Français\",Sprachen!B55,Sprachen!C55))","v":"über   100 kWh "},null,null,null,{"$f":"IF(OR(ISBLANK(F31),ISBLANK(G31)),\"\",IF(K31>L31,\"\",IF(Sprache=\"deutsch\",Sprachen!A$80,IF(Sprache=\"Français\",Sprachen!$B$80,Sprachen!C$80))&\": \"&ROUND(K31,1)))","v":""},{"$f":"IF(OR(ISBLANK(F31),ISBLANK(G31)),0,(I31=\"\")-1)","v":0},{"$f":"F31/G31","v":{"$error":"#DIV/0!"}},100]
[{"$f":"IF(Sprache=\"deutsch\",Sprachen!A39,IF(Sprache=\"Français\",Sprachen!B39,Sprachen!C39))","v":"Landwirtschaft"},null,null,null,{"$f":"IF(Sprache=\"deutsch\",Sprachen!A56,IF(Sprache=\"Français\",Sprachen!B56,Sprachen!C56))","v":"Total Anlagen"},{"$f":"SUM(F29:F31)","v":0},{"$f":"SUM(G29:G31)","v":0}]
[{"$f":"IF(Sprache=\"deutsch\",Sprachen!A40,IF(Sprache=\"Français\",Sprachen!B40,Sprachen!C40))","v":"Dienstleistung"}]
[{"$f":"IF(Sprache=\"deutsch\",Sprachen!A41,IF(Sprache=\"Français\",Sprachen!B41,Sprachen!C41))","v":"Öffentliche Dienste"}]
[{"$f":"IF(Sprache=\"deutsch\",Sprachen!A42,IF(Sprache=\"Français\",Sprachen!B42,Sprachen!C42))","v":"Verkehr"}]
[{"$f":"IF(Sprache=\"deutsch\",Sprachen!A43,IF(Sprache=\"Français\",Sprachen!B43,Sprachen!C43))","v":"Übrige Standorte"}]
[{"$f":"IF(Sprache=\"deutsch\",Sprachen!A56,IF(Sprache=\"Français\",Sprachen!B56,Sprachen!C56))","v":"Total Anlagen"},{"$f":"SUM(B29:B36)","v":0},{"$f":"SUM(C29:C36)","v":0}]
[]
[{"$f":"IF(Sprache=\"deutsch\",Sprachen!A46,IF(Sprache=\"Français\",Sprachen!B46,Sprachen!C46))","v":"4. Second Life Produkte"},null,null,null,{"$f":"IF(Sprache=\"deutsch\",Sprachen!A58,IF(Sprache=\"Français\",Sprachen!B58,Sprachen!C58))","v":"Bemerkungen"}]
[null,{"$f":"IF(Sprache=\"deutsch\",Sprachen!A28,IF(Sprache=\"Français\",Sprachen!B28,Sprachen!C28))","v":"Kapazität"},{"$f":"IF(Sprache=\"deutsch\",Sprachen!A44,IF(Sprache=\"Français\",Sprachen!B44,Sprachen!C44))","v":"Anzahl"}]
[null,"[ kWh ]",{"$f":"IF(Sprache=\"deutsch\",Sprachen!A45,IF(Sprache=\"Français\",Sprachen!B45,Sprachen!C45))","v":"Anlagen"}]
[{"$f":"IF(Sprache=\"deutsch\",Sprachen!A47,IF(Sprache=\"Français\",Sprachen!B47,Sprachen!C47))","v":"Neue Produkte"},{"$f":"B44-B43","v":0},{"$f":"C44-C43","v":0}]
[{"$f":"IF(Sprache=\"deutsch\",Sprachen!A48,IF(Sprache=\"Français\",Sprachen!B48,Sprachen!C48))","v":"Second Life Produkte"}]
[{"$f":"IF(Sprache=\"deutsch\",Sprachen!A56,IF(Sprache=\"Français\",Sprachen!B56,Sprachen!C56))","v":"Total Anlagen"},{"$f":"B37","v":0},{"$f":"C37","v":0}]
[]
[{"$f":"IF(Sprache=\"deutsch\",Sprachen!A49,IF(Sprache=\"Français\",Sprachen!B49,Sprachen!C49))","v":"5. Ersatzanlagen"}]
[null,{"$f":"IF(Sprache=\"deutsch\",Sprachen!A28,IF(Sprache=\"Français\",Sprachen!B28,Sprachen!C28))","v":"Kapazität"},{"$f":"IF(Sprache=\"deutsch\",Sprachen!A44,IF(Sprache=\"Français\",Sprachen!B44,Sprachen!C44))","v":"Anzahl"}]
[null,"[ kWh ]",{"$f":"IF(Sprache=\"deutsch\",Sprachen!A45,IF(Sprache=\"Français\",Sprachen!B45,Sprachen!C45))","v":"Anlagen"}]
[{"$f":"IF(Sprache=\"deutsch\",Sprachen!A50,IF(Sprache=\"Français\",Sprachen!B50,Sprachen!C50))","v":"Neuanlagen"},{"$f":"B51-B50","v":0},{"$f":"C51-C50","v":0}]
[{"$f":"IF(Sprache=\"deutsch\",Sprachen!A51,IF(Sprache=\"Français\",Sprachen!B51,Sprachen!C51))","v":"Ersetzte Anlagen"}]
[{"$f":"IF(Sprache=\"deutsch\",Sprachen!A57,IF(Sprache=\"Français\",Sprachen!B57,Sprachen!C57))","v":"Anzahl Systeme"},{"$f":"B44","v":0},{"$f":"C44","v":0}]
[]
[{"$f":"IF(Sprache=\"deutsch\",Sprachen!A59,IF(Sprache=\"Français\",Sprachen!B59,Sprachen!C59))","v":"Grundsätze"}]
[{"$f":"IF(Sprache=\"deutsch\",Sprachen!A60,IF(Sprache=\"Français\",Sprachen!B60,Sprachen!C60))","v":"Datenschutz\n"},{"$f":"IF(Sprache=\"deutsch\",Sprachen!A64,IF(Sprache=\"Français\",Sprachen!B64,Sprachen!C64))","v":"Die Zahlen der einzelnen Firmen werden streng vertraulich behandelt. Sie sind lediglich den verantwortlichen Personen von Swissolar sowie dem Bundesamt für Energie, Sektion Analysen und Perspektiven, zugänglich."}]
[{"$f":"IF(Sprache=\"deutsch\",Sprachen!A61,IF(Sprache=\"Français\",Sprachen!B61,Sprachen!C61))","v":"Zeitpunkt"},{"$f":"IF(Sprache=\"deutsch\",Sprachen!A65,IF(Sprache=\"Français\",Sprachen!B65,Sprachen!C65))","v":"Massgebend für die Statistik ist der Zeitpunkt der Verkäufe und/oder Installationen im Jahre 2023."}]
[{"$f":"IF(Sprache=\"deutsch\",Sprachen!A62,IF(Sprache=\"Français\",Sprachen!B62,Sprachen!C62))","v":"Erhebungsgrössen"},{"$f":"IF(Sprache=\"deutsch\",Sprachen!A66,IF(Sprache=\"Français\",Sprachen!B66,Sprachen!C66))","v":"Für die Erhebung ist die Nennkapazität massgebend."}]
[{"$f":"IF(Sprache=\"deutsch\",Sprachen!A63,IF(Sprache=\"Français\",Sprachen!B63,Sprachen!C63))","v":"Rücksendung"},{"$f":"IF(Sprache=\"deutsch\",Sprachen!A67,IF(Sprache=\"Français\",Sprachen!B67,Sprachen!C67))","v":"Freitag, 09. Februar 2024 an marktumfrage@swissolar.ch"}]

{"sheet":"Andere","index":2,"n_rows":57,"n_cols":12,"rows_kept":57,"cut":false,"hidden":false,"merged":[[0,6,0,7],[58,1,58,6],[21,4,21,6],[22,4,22,6],[53,1,53,6],[54,1,54,6],[55,1,55,6]]}
[{"$f":"IF(Sprache=\"deutsch\",Sprachen!A2,IF(Sprache=\"Français\",Sprachen!B2,Sprachen!C2))","v":"Statistik Sonnenenergie"},null,null,null,"Sprache/Langue/Lingua","Deutsch",{"$f":"Jahr","v":2023},null,{"$f":"IF(Sprache=\"deutsch\",Sprachen!A81,IF(Sprache=\"Français\",Sprachen!B81,Sprachen!C81))","v":"Falls Fehler, hier angezeigt:"},"ausblenden"]
[{"$f":"IF(Sprache=\"deutsch\",Sprachen!A3,IF(Sprache=\"Français\",Sprachen!B3,Sprachen!C3))&\" - \"&IF(Sprache=\"deutsch\",Sprachen!A6,IF(Sprache=\"Français\",Sprachen!B6,Sprachen!C6))","v":"Elektrische Speichersysteme - Blei-Speicher und andere Speichersysteme"},null,null,null,null,null,null,{"$f":"IF(Referenz!B9+Referenz!B11+Referenz!B12+Referenz!B10+Referenz!B14+Referenz!B14=6,IF(Sprache=\"Deutsch\",Sprachen!$A$72,IF(Sprache=\"Français\",Sprachen!$B$72,Sprachen!$C$72)),IF(Sprache=\"Deutsch\",Sprachen!$A$73,IF(Sprache=\"Français\",Sprachen!$B$73,Sprachen!$C$73)))","v":"Status ok"}]
[null,null,null,null,null,null,null,null,{"$f":"IF(Referenz!B24,\"\",IF(Sprache=\"deutsch\",Sprachen!A75,IF(Sprache=\"Français\",Sprachen!B75,Sprachen!C75)))","v":""}]
[{"$f":"IF(Sprache=\"deutsch\",Sprachen!A7,IF(Sprache=\"Français\",Sprachen!B7,Sprachen!C7))","v":"Unternehmen"},null,null,null,null,null,null,null,{"$f":"IF(Referenz!B25,\"\",IF(Sprache=\"deutsch\",Sprachen!A76,IF(Sprache=\"Français\",Sprachen!B76,Sprachen!C76)))","v":""}]
[{"$f":"IF(Sprache=\"deutsch\",Sprachen!A8,IF(Sprache=\"Français\",Sprachen!B8,Sprachen!C8))","v":"Firma"},{"$f":"IF('Li-Ionen'!B5<>\"\",'Li-Ionen'!B5,\"\")","v":""},{"$f":"IF('Li-Ionen'!C5<>\"\",'Li-Ionen'!C5,\"\")","v":""},{"$f":"IF('Li-Ionen'!D5<>\"\",'Li-Ionen'!D5,\"\")","v":""},null,{"$f":"IF(Sprache=\"deutsch\",Sprachen!A14,IF(Sprache=\"Français\",Sprachen!B14,Sprachen!C14))","v":"Hersteller"},null,null,{"$f":"IF(Referenz!B26,\"\",IF(Sprache=\"deutsch\",Sprachen!A77,IF(Sprache=\"Français\",Sprachen!B77,Sprachen!C77)))","v":""}]
[{"$f":"IF(Sprache=\"deutsch\",Sprachen!A9,IF(Sprache=\"Français\",Sprachen!B9,Sprachen!C9))","v":"Strasse"},{"$f":"IF('Li-Ionen'!B6<>\"\",'Li-Ionen'!B6,\"\")","v":""},{"$f":"IF('Li-Ionen'!C6<>\"\",'Li-Ionen'!C6,\"\")","v":""},{"$f":"IF('Li-Ionen'!D6<>\"\",'Li-Ionen'!D6,\"\")","v":""},null,{"$f":"IF(Sprache=\"deutsch\",Sprachen!A15,IF(Sprache=\"Français\",Sprachen!B16,Sprachen!C15))","v":"Importeur"},null,null,{"$f":"IF(Referenz!B27,\"\",IF(Sprache=\"deutsch\",Sprachen!A78,IF(Sprache=\"Français\",Sprachen!B78,Sprachen!C78)))","v":""}]
[{"$f":"IF(Sprache=\"deutsch\",Sprachen!A10,IF(Sprache=\"Français\",Sprachen!B10,Sprachen!C10))","v":"PLZ/Ort"},{"$f":"IF('Li-Ionen'!B7<>\"\",'Li-Ionen'!B7,\"\")","v":""},{"$f":"IF('Li-Ionen'!C7<>\"\",'Li-Ionen'!C7,\"\")","v":""},{"$f":"IF('Li-Ionen'!D7<>\"\",'Li-Ionen'!D7,\"\")","v":""},null,{"$f":"IF(Sprache=\"deutsch\",Sprachen!A16,IF(Sprache=\"Français\",Sprachen!B16,Sprachen!C16))","v":"Handelsunternehmung"},null,null,{"$f":"IF(Referenz!B28,\"\",IF(Sprache=\"deutsch\",Sprachen!A79,IF(Sprache=\"Français\",Sprachen!B79,Sprachen!C79)))","v":""}]
[{"$f":"IF(Sprache=\"deutsch\",Sprachen!A11,IF(Sprache=\"Français\",Sprachen!B11,Sprachen!C11))","v":"Kontaktperson"},{"$f":"IF('Li-Ionen'!B8<>\"\",'Li-Ionen'!B8,\"\")","v":""},{"$f":"IF('Li-Ionen'!C8<>\"\",'Li-Ionen'!C8,\"\")","v":""},{"$f":"IF('Li-Ionen'!D8<>\"\",'Li-Ionen'!D8,\"\")","v":""},null,{"$f":"IF(Sprache=\"deutsch\",Sprachen!A17,IF(Sprache=\"Français\",Sprachen!B17,Sprachen!C17))","v":"Installateur"},null,null,{"$f":"IF(Referenz!B29,\"\",IF(Sprache=\"deutsch\",Sprachen!A80,IF(Sprache=\"Français\",Sprachen!B80,Sprachen!C80)))","v":""}]
[{"$f":"IF(Sprache=\"deutsch\",Sprachen!A12,IF(Sprache=\"Français\",Sprachen!B12,Sprachen!C12))","v":"Telefon"},{"$f":"IF('Li-Ionen'!B9<>\"\",'Li-Ionen'!B9,\"\")","v":""},{"$f":"IF('Li-Ionen'!C9<>\"\",'Li-Ionen'!C9,\"\")","v":""},{"$f":"IF('Li-Ionen'!D9<>\"\",'Li-Ionen'!D9,\"\")","v":""},null,{"$f":"IF(Sprache=\"deutsch\",Sprachen!A18,IF(Sprache=\"Français\",Sprachen!B18,Sprachen!C18))","v":"Andere"}]
[{"$f":"IF(Sprache=\"deutsch\",Sprachen!A13,IF(Sprache=\"Français\",Sprachen!B13,Sprachen!C13))","v":"E-Mail"},{"$f":"IF('Li-Ionen'!B10<>\"\",'Li-Ionen'!B10,\"\")","v":""},{"$f":"IF('Li-Ionen'!C10<>\"\",'Li-Ionen'!C10,\"\")","v":""},{"$f":"IF('Li-Ionen'!D10<>\"\",'Li-Ionen'!D10,\"\")","v":""}]
[]
[{"$f":"IF(Sprache=\"deutsch\",Sprachen!A68,IF(Sprache=\"Français\",Sprachen!B68,Sprachen!C68))","v":"        Ich habe keine Anlagen produziert, gehandelt oder installiert"}]
[]
[{"$f":"IF(Sprache=\"deutsch\",Sprachen!A19,IF(Sprache=\"Français\",Sprachen!B19,Sprachen!B19))","v":"Produktion & Handel"}]
[{"$f":"IF(Sprache=\"deutsch\",Sprachen!A20,IF(Sprache=\"Français\",Sprachen!B20,Sprachen!C20))","v":"1. Herkunft der Speichersysteme"},{"$f":"IF(Sprache=\"deutsch\",Sprachen!A28,IF(Sprache=\"Français\",Sprachen!B28,Sprachen!C28))","v":"Kapazität"},null,null,{"$f":"IF(Sprache=\"deutsch\",Sprachen!A29,IF(Sprache=\"Français\",Sprachen!B29,Sprachen!C29))","v":"2. Vertrieb der Speichersysteme"},null,{"$f":"IF(Sprache=\"deutsch\",Sprachen!A28,IF(Sprache=\"Français\",Sprachen!B28,Sprachen!C28))","v":"Kapazität"}]
[{"$f":"IF(Sprache=\"deutsch\",Sprachen!A21,IF(Sprache=\"Français\",Sprachen!B21,Sprachen!C21))","v":"(AC- und DC-gekoppelte Systeme)"},"[ kWh ]",null,null,{"$f":"IF(Sprache=\"deutsch\",Sprachen!A21,IF(Sprache=\"Français\",Sprachen!B21,Sprachen!C21))","v":"(AC- und DC-gekoppelte Systeme)"},null,"[ kWh ]"]
[{"$f":"IF(Sprache=\"deutsch\",Sprachen!A22,IF(Sprache=\"Français\",Sprachen!B22,Sprachen!C22))","v":"Eigenproduktion"},null,null,null,{"$f":"IF(Sprache=\"deutsch\",Sprachen!A30,IF(Sprache=\"Français\",Sprachen!B30,Sprachen!C30))","v":"an Bauherrschaft"}]
[{"$f":"IF(Sprache=\"deutsch\",Sprachen!A23,IF(Sprache=\"Français\",Sprachen!B23,Sprachen!C23))","v":"Bezug Schweiz"},null,null,null,{"$f":"IF(Sprache=\"deutsch\",Sprachen!A31,IF(Sprache=\"Français\",Sprachen!B31,Sprachen!C31))","v":"an Installateur (1)"}]
[{"$f":"IF(Sprache=\"deutsch\",Sprachen!A24,IF(Sprache=\"Français\",Sprachen!B24,Sprachen!C24))","v":"Import"},null,null,null,{"$f":"IF(Sprache=\"deutsch\",Sprachen!A32,IF(Sprache=\"Français\",Sprachen!B32,Sprachen!C32))","v":"an Handel (1)"}]
[{"$f":"IF(Sprache=\"deutsch\",Sprachen!A25,IF(Sprache=\"Français\",Sprachen!B25,Sprachen!C25))","v":"Summe Herkunft"},{"$f":"SUM(B17:B19)","v":0},null,null,{"$f":"IF(Sprache=\"deutsch\",Sprachen!A27,IF(Sprache=\"Français\",Sprachen!B27,Sprachen!C27))","v":"Summe Verkauf Schweiz"},null,{"$f":"SUM(G17:G19)","v":0}]
[{"$f":"IF(Sprache=\"deutsch\",Sprachen!A26,IF(Sprache=\"Français\",Sprachen!B26,Sprachen!C26))","v":"abzüglich Export"},null,null,null,{"$f":"IF(Sprache=\"deutsch\",Sprachen!A33,IF(Sprache=\"Français\",Sprachen!B33,Sprachen!C33))","v":"(1)  Bitte Wiederverkäufer angeben:"}]
[{"$f":"IF(Sprache=\"deutsch\",Sprachen!A27,IF(Sprache=\"Français\",Sprachen!B27,Sprachen!C27))","v":"Summe Verkauf Schweiz"},{"$f":"SUM(B20-B21)","v":0}]
[]
[]
[{"$f":"IF(Sprache=\"deutsch\",Sprachen!A34,IF(Sprache=\"Français\",Sprachen!B34,Sprachen!C34))","v":"Installation (nur in der Schweiz installierte Anlagen)"}]
[{"$f":"IF(Sprache=\"deutsch\",Sprachen!A35,IF(Sprache=\"Français\",Sprachen!B35,Sprachen!C35))","v":"3. Ort der Anlagen"},null,null,null,{"$f":"IF(Sprache=\"deutsch\",Sprachen!A52,IF(Sprache=\"Français\",Sprachen!B52,Sprachen!C52))","v":"6. Anlagen nach Anlagengrösse"}]
[null,{"$f":"IF(Sprache=\"deutsch\",Sprachen!A28,IF(Sprache=\"Français\",Sprachen!B28,Sprachen!C28))","v":"Kapazität"},{"$f":"IF(Sprache=\"deutsch\",Sprachen!A44,IF(Sprache=\"Français\",Sprachen!B44,Sprachen!C44))","v":"Anzahl"},null,null,{"$f":"IF(Sprache=\"deutsch\",Sprachen!A28,IF(Sprache=\"Français\",Sprachen!B28,Sprachen!C28))","v":"Kapazität"},{"$f":"IF(Sprache=\"deutsch\",Sprachen!A44,IF(Sprache=\"Français\",Sprachen!B44,Sprachen!C44))","v":"Anzahl"},null,null,{"$f":"SUM(J29:J42)","v":0},"Total Fehleranzahl"]
[null,"[ kWh ]",{"$f":"IF(Sprache=\"deutsch\",Sprachen!A45,IF(Sprache=\"Français\",Sprachen!B45,Sprachen!C45))","v":"Anlagen"},null,null,"[ kWh ]",{"$f":"IF(Sprache=\"deutsch\",Sprachen!A45,IF(Sprache=\"Français\",Sprachen!B45,Sprachen!C45))","v":"Anlagen"},null,null,"Fehler","Informationen für Prüfung"]
[{"$f":"IF(Sprache=\"deutsch\",Sprachen!A36,IF(Sprache=\"Français\",Sprachen!B36,Sprachen!C36))","v":"Einfamilienhäuser "},null,null,null,{"$f":"IF(Sprache=\"deutsch\",Sprachen!A53,IF(Sprache=\"Français\",Sprachen!B53,Sprachen!C53))","v":"                          bis       20 kWh"},null,null,null,{"$f":"IF(OR(ISBLANK(F29),ISBLANK(G29)),\"\",IF(AND(K29>L29,K29<=L30),\"\",IF(Sprache=\"deutsch\",Sprachen!A$80,IF(Sprache=\"Français\",Sprachen!$B$80,Sprachen!C$80))&\": \"&ROUND(K29,2)))","v":""},{"$f":"IF(OR(ISBLANK(F29),ISBLANK(G29)),0,(I29=\"\")-1)","v":0},{"$f":"F29/G29","v":{"$error":"#DIV/0!"}}]
[{"$f":"IF(Sprache=\"deutsch\",Sprachen!A37,IF(Sprache=\"Français\",Sprachen!B37,Sprachen!C37))","v":"Mehrfamilienhäuser "},null,null,null,{"$f":"IF(Sprache=\"deutsch\",Sprachen!A54,IF(Sprache=\"Français\",Sprachen!B54,Sprachen!C54))","v":"über     20 kWh  bis     100 kWh"},null,null,null,{"$f":"IF(OR(ISBLANK(F30),ISBLANK(G30)),\"\",IF(AND(K30>L30,K30<=L31),\"\",IF(Sprache=\"deutsch\",Sprachen!A$80,IF(Sprache=\"Français\",Sprachen!$B$80,Sprachen!C$80))&\": \"&ROUND(K30,1)))","v":""},{"$f":"IF(OR(ISBLANK(F30),ISBLANK(G30)),0,(I30=\"\")-1)","v":0},{"$f":"F30/G30","v":{"$error":"#DIV/0!"}},20]
[{"$f":"IF(Sprache=\"deutsch\",Sprachen!A38,IF(Sprache=\"Français\",Sprachen!B38,Sprachen!C38))","v":"Industrie, Gewerbe"},null,null,null,{"$f":"IF(Sprache=\"deutsch\",Sprachen!A55,IF(Sprache=\"Français\",Sprachen!B55,Sprachen!C55))","v":"über   100 kWh "},null,null,null,{"$f":"IF(OR(ISBLANK(F31),ISBLANK(G31)),\"\",IF(K31>L31,\"\",IF(Sprache=\"deutsch\",Sprachen!A$80,IF(Sprache=\"Français\",Sprachen!$B$80,Sprachen!C$80))&\": \"&ROUND(K31,1)))","v":""},{"$f":"IF(OR(ISBLANK(F31),ISBLANK(G31)),0,(I31=\"\")-1)","v":0},{"$f":"F31/G31","v":{"$error":"#DIV/0!"}},100]
[{"$f":"IF(Sprache=\"deutsch\",Sprachen!A39,IF(Sprache=\"Français\",Sprachen!B39,Sprachen!C39))","v":"Landwirtschaft"},null,null,null,{"$f":"IF(Sprache=\"deutsch\",Sprachen!A56,IF(Sprache=\"Français\",Sprachen!B56,Sprachen!C56))","v":"Total Anlagen"},{"$f":"SUM(F29:F31)","v":0},{"$f":"SUM(G29:G31)","v":0}]
[{"$f":"IF(Sprache=\"deutsch\",Sprachen!A40,IF(Sprache=\"Français\",Sprachen!B40,Sprachen!C40))","v":"Dienstleistung"}]
[{"$f":"IF(Sprache=\"deutsch\",Sprachen!A41,IF(Sprache=\"Français\",Sprachen!B41,Sprachen!C41))","v":"Öffentliche Dienste"}]
[{"$f":"IF(Sprache=\"deutsch\",Sprachen!A42,IF(Sprache=\"Français\",Sprachen!B42,Sprachen!C42))","v":"Verkehr"}]
[{"$f":"IF(Sprache=\"deutsch\",Sprachen!A43,IF(Sprache=\"Français\",Sprachen!B43,Sprachen!C43))","v":"Übrige Standorte"}]
[{"$f":"IF(Sprache=\"deutsch\",Sprachen!A56,IF(Sprache=\"Français\",Sprachen!B56,Sprachen!C56))","v":"Total Anlagen"},{"$f":"SUM(B29:B36)","v":0},{"$f":"SUM(C29:C36)","v":0}]
[]
[{"$f":"IF(Sprache=\"deutsch\",Sprachen!A46,IF(Sprache=\"Français\",Sprachen!B46,Sprachen!C46))","v":"4. Second Life Produkte"},null,null,null,{"$f":"IF(Sprache=\"deutsch\",Sprachen!A58,IF(Sprache=\"Français\",Sprachen!B58,Sprachen!C58))","v":"Bemerkungen"}]
[null,{"$f":"IF(Sprache=\"deutsch\",Sprachen!A28,IF(Sprache=\"Français\",Sprachen!B28,Sprachen!C28))","v":"Kapazität"},{"$f":"IF(Sprache=\"deutsch\",Sprachen!A44,IF(Sprache=\"Français\",Sprachen!B44,Sprachen!C44))","v":"Anzahl"}]
[null,"[ kWh ]",{"$f":"IF(Sprache=\"deutsch\",Sprachen!A45,IF(Sprache=\"Français\",Sprachen!B45,Sprachen!C45))","v":"Anlagen"}]
[{"$f":"IF(Sprache=\"deutsch\",Sprachen!A47,IF(Sprache=\"Français\",Sprachen!B47,Sprachen!C47))","v":"Neue Produkte"},{"$f":"B44-B43","v":0},{"$f":"C44-C43","v":0}]
[{"$f":"IF(Sprache=\"deutsch\",Sprachen!A48,IF(Sprache=\"Français\",Sprachen!B48,Sprachen!C48))","v":"Second Life Produkte"}]
[{"$f":"IF(Sprache=\"deutsch\",Sprachen!A56,IF(Sprache=\"Français\",Sprachen!B56,Sprachen!C56))","v":"Total Anlagen"},{"$f":"B37","v":0},{"$f":"C37","v":0}]
[]
[{"$f":"IF(Sprache=\"deutsch\",Sprachen!A49,IF(Sprache=\"Français\",Sprachen!B49,Sprachen!C49))","v":"5. Ersatzanlagen"}]
[null,{"$f":"IF(Sprache=\"deutsch\",Sprachen!A28,IF(Sprache=\"Français\",Sprachen!B28,Sprachen!C28))","v":"Kapazität"},{"$f":"IF(Sprache=\"deutsch\",Sprachen!A44,IF(Sprache=\"Français\",Sprachen!B44,Sprachen!C44))","v":"Anzahl"}]
[null,"[ kWh ]",{"$f":"IF(Sprache=\"deutsch\",Sprachen!A45,IF(Sprache=\"Français\",Sprachen!B45,Sprachen!C45))","v":"Anlagen"}]
[{"$f":"IF(Sprache=\"deutsch\",Sprachen!A50,IF(Sprache=\"Français\",Sprachen!B50,Sprachen!C50))","v":"Neuanlagen"},{"$f":"B51-B50","v":0},{"$f":"C51-C50","v":0}]
[{"$f":"IF(Sprache=\"deutsch\",Sprachen!A51,IF(Sprache=\"Français\",Sprachen!B51,Sprachen!C51))","v":"Ersetzte Anlagen"}]
[{"$f":"IF(Sprache=\"deutsch\",Sprachen!A57,IF(Sprache=\"Français\",Sprachen!B57,Sprachen!C57))","v":"Anzahl Systeme"},{"$f":"B44","v":0},{"$f":"C44","v":0}]
[]
[{"$f":"IF(Sprache=\"deutsch\",Sprachen!A59,IF(Sprache=\"Français\",Sprachen!B59,Sprachen!C59))","v":"Grundsätze"}]
[{"$f":"IF(Sprache=\"deutsch\",Sprachen!A60,IF(Sprache=\"Français\",Sprachen!B60,Sprachen!C60))","v":"Datenschutz\n"},{"$f":"IF(Sprache=\"deutsch\",Sprachen!A64,IF(Sprache=\"Français\",Sprachen!B64,Sprachen!C64))","v":"Die Zahlen der einzelnen Firmen werden streng vertraulich behandelt. Sie sind lediglich den verantwortlichen Personen von Swissolar sowie dem Bundesamt für Energie, Sektion Analysen und Perspektiven, zugänglich."}]
[{"$f":"IF(Sprache=\"deutsch\",Sprachen!A61,IF(Sprache=\"Français\",Sprachen!B61,Sprachen!C61))","v":"Zeitpunkt"},{"$f":"IF(Sprache=\"deutsch\",Sprachen!A65,IF(Sprache=\"Français\",Sprachen!B65,Sprachen!C65))","v":"Massgebend für die Statistik ist der Zeitpunkt der Verkäufe und/oder Installationen im Jahre 2023."}]
[{"$f":"IF(Sprache=\"deutsch\",Sprachen!A62,IF(Sprache=\"Français\",Sprachen!B62,Sprachen!C62))","v":"Erhebungsgrössen"},{"$f":"IF(Sprache=\"deutsch\",Sprachen!A66,IF(Sprache=\"Français\",Sprachen!B66,Sprachen!C66))","v":"Für die Erhebung ist die Nennkapazität massgebend."}]
[{"$f":"IF(Sprache=\"deutsch\",Sprachen!A63,IF(Sprache=\"Français\",Sprachen!B63,Sprachen!C63))","v":"Rücksendung"},{"$f":"IF(Sprache=\"deutsch\",Sprachen!A67,IF(Sprache=\"Français\",Sprachen!B67,Sprachen!C67))","v":"Freitag, 09. Februar 2024 an marktumfrage@swissolar.ch"}]

{"sheet":"Sprachen","index":3,"n_rows":81,"n_cols":3,"rows_kept":81,"cut":false,"hidden":true,"merged":[]}
["Deutsch","Französisch","Italienisch"]
["Statistik Sonnenenergie","Statistique énergie solaire photovoltaïque","Statistica sull'energia solare"]
["Elektrische Speichersysteme","Systèmes de stockage électriques","Sistemi di stoccaggio elettrici"]
["Systeme mit Li-Ionen Speicher","Systèmes avec batterie lithium-ion","Sistemi di stoccaggio agli ioni di litio"]
["Speichersysteme auf Salzbasis ","Systèmes de stockage à base de sel","Sistemi di stoccaggio a base di sale"]
["Blei-Speicher und andere Speichersysteme","Batterie au plomb et autres systèmes de stockage électrique","Accumulatori al piombo e altri sistemi di stoccaggio"]
["Unternehmen","Entreprise","Dati dell'azienda"]
["Firma","Nom","Nome dell'azienda"]
["Strasse","Rue","Indirizzo"]
["PLZ/Ort","NPA/lieu","NAP/Luogo"]
["Kontaktperson","Personne de contact","Persona di contatto"]
["Telefon","Téléphone","Telefono"]
["E-Mail","E-Mail","E-mail"]
["Hersteller","Fabricant","Fabbricante"]
["Importeur","Importateur","Importatore"]
["Handelsunternehmung","Revendeur","Rivenditore"]
["Installateur","Installateur","Installatore"]
["Andere","Autre","Altro"]
["Produktion & Handel","Production & commercialisation","Produzione & Commercio"]
["1. Herkunft der Speichersysteme","1. Origine des modules","1. Provenienza del sistema di accumulo"]
["(AC- und DC-gekoppelte Systeme)","(Systèmes couplés en AC et DC)","(sistemi accoppiati in AC e DC)"]
["Eigenproduktion","Production propre","Produzione propria"]
["Bezug Schweiz","Acheté en Suisse","Acquisti dalla Svizzera"]
["Import","Import","Import"]
["Summe Herkunft","Total origine","Totale provenienza"]
["abzüglich Export","moins export","deduzione Export"]
["Summe Verkauf Schweiz","Total des ventes en Suisse","Totale vendita in Svizzera"]
["Kapazität","Capacité","Capacità"]
["2. Vertrieb der Speichersysteme","2. Distribution des systèmes de stockage","2. Distribuzione dei sistemi di accumulo"]
["an Bauherrschaft","aux maîtres d'ouvrages","a committenti"]
["an Installateur (1)","par l'installateur (1)","a installatori (1)"]
["an Handel (1)","par d'autres revendeurs (1)","a rivenditori (1)"]
["(1)  Bitte Wiederverkäufer angeben:","(1) merci d'indiquer le racheteur:","(1)  P.f. indicare il rivenditore:"]
["Installation (nur in der Schweiz installierte Anlagen)","Installation (uniquement le installations en Suisse)","Installazione (solo impianti installati in Svizzera)"]
["3. Ort der Anlagen","3. Type d'installation","3. Luogo dell'impianto"]
["Einfamilienhäuser ","Maisons individuelles","Case monofamigliari"]
["Mehrfamilienhäuser ","Immeubles","Case plurifamigliari"]
["Industrie, Gewerbe","Industrie, commerce","Industria, artigianato"]
["Landwirtschaft","Agriculture","Agricoltura"]
["Dienstleistung","Services","Servizi"]
["Öffentliche Dienste","Secteur public","Servizi pubblici"]
["Verkehr","Transports","Trasporti"]
["Übrige Standorte","Divers","Altri luoghi"]
["Anzahl","Nombre","Numero"]
["Anlagen","d'install.","Impianti"]
["4. Second Life Produkte","4. Produits Second life","4. Prodotti di seconda mano"]
["Neue Produkte","Nouveaux produits","Nuovi prodotti"]
["Second Life Produkte","Produits Seconde Life","Prodotti di seconda mano"]
["5. Ersatzanlagen","5. Remplacement d'installations","5. Impianti sostitutivi"]
["Neuanlagen","Nouvelles installations","Impianti nuovi"]
["Ersetzte Anlagen","Installations remplacées","Impianti sostituiti"]
["6. Anlagen nach Anlagengrösse","5. Installations selon la taille","6. Impianti per dimensione dell'impianto"]
["                          bis       20 kWh","                          jusqu'à   20 kWh","                  fino a     20 kWh"]
["über     20 kWh  bis     100 kWh","plus de     20 kWh  à     100 kWh","da      20 kWh  a    100 kWh"]
["über   100 kWh ","plus de   100 kWh","oltre  100 kWh"]
["Total Anlagen","Total installations","Totale impianti"]
["Anzahl Systeme","Nombre de systèmes","Numero di sistemi"]
["Bemerkungen","Remarques","Osservazioni"]
["Grundsätze","Principes","Aspetti generali"]
["Datenschutz\n","Protections des données","Protezione dei dati"]
["Zeitpunkt","Date","Periodo considerato"]
["Erhebungsgrössen","Données","Parametri di riferimento"]
["Rücksendung","Retour","Termine di risposta"]
["Die Zahlen der einzelnen Firmen werden streng vertraulich behandelt. Sie sind lediglich den verantwortlichen Personen von Swissolar sowie dem Bundesamt für Energie, Sektion Analysen und Perspektiven, zugänglich.","Les chiffres des différentes entreprises sont strictement confidentiels. Elles ne sont accessibles qu'aux personnes responsables de Swissolar et de l'Office fédéral de l'énergie, Section Analyses et perspectives.\n\n","I dati forniti dalle singole aziende vengono trattati in modo strettamente confidenziale. Essi sono accessibili unicamente ai collaboratori di Swissolare e dell'Ufficio federale dell'energia, Sezione Analisi e Prospettive, incaricati di elaborare le statistiche."]
[{"$f":"\"Massgebend für die Statistik ist der Zeitpunkt der Verkäufe und/oder Installationen im Jahre \" & Jahr & \".\"","v":"Massgebend für die Statistik ist der Zeitpunkt der Verkäufe und/oder Installationen im Jahre 2023."},"Ne sont à considerer que les ventes ou montages qui ont eu lieu en 2023.","Per la statistica fanno stato unicamente i prodotti venduti e/o installati nel 2023."]
["Für die Erhebung ist die Nennkapazität massgebend.","La capacité nominale est déterminante pour la collecte.","Per il rilievo dei dati fa stato la capacità nominale."]
[{"$f":"TEXT(Datum_Eingang,\"TTTT, TT. MMMM JJJJ\")& \" an marktumfrage@swissolar.ch\"","v":"Freitag, 09. Februar 2024 an marktumfrage@swissolar.ch"},"vendredi, 9. février 2024 à l'adresse e-mail marktumfrage@swissolar.ch","venerdì, 9. febbraio 2024 all'indirizzo e-mail marktumfrage@swissolar.ch"]
["        Ich habe keine Anlagen produziert, gehandelt oder installiert","        Je n'ai pas fabriqué, commercialisé ou réalisé d'installation ","        Non ho fabbricato, commerciato o installato alcun impianto"]
[]
[]
["Fehlemeldungen"]
["Status ok","Statut ok","Stato ok"]
["Status: unvollständig oder Fehler!","Status: incomplet ou erreur!","Stato: incompleto o errore!"]
["Fehler","Erreur","Errore"]
[{"$f":"Referenz!C9","v":"Total Tabelle 1 <> Total Tabelle 2"},"Total table 1 <> total table 2","Totale tabella 1 <> totale tabella 2"]
[{"$f":"Referenz!C10","v":"Tabelle 2 an Bauherrschaft <> (Kapazität Total Tabelle 3)"},"Table 2 aux maîtres d'ouvrages <> (capacité total table 3)","tabella 2 a committenti <> capacità totale tabella 3"]
[{"$f":"Referenz!C11","v":"Kapazität: Total Tabelle 3 <> Total Anlagen Tabelle 5"},"Capacité: total table 3 <> total installations table 5","Capacità: totale tabella 3 <> Totale impianti tabella 5"]
[{"$f":"Referenz!C12","v":"Anzahl Anlagen: Total Tabelle 3 <> Total Tabelle 5"},"Nombre d'installations: total table 3 <> total installations table 5","Numero impianti: totale tabella 3 <> Totale impianti tabella 5"]
[{"$f":"Referenz!C13","v":"Generelle Eingabe in A11 falsch"},"Information général dans A11 incorrecte","Informazioni generali in A11 non corrette"]
["Die durchschnittliche Anlagengrösse ist ausserhalb der angegebenen Werte","La taille moyenne des installations est en dehors des valeurs spécifiées","La dimensione media degli impianti è al di fuori dei valori specificati"]
["Falls Fehler, hier angezeigt:","Si erreur, affiché ici:","In caso di errore, viene visualizzato qui:"]

{"sheet":"Export","index":4,"n_rows":170,"n_cols":16,"rows_kept":170,"cut":false,"hidden":true,"merged":[[28,0,33,0],[34,0,37,0],[38,0,55,0],[41,7,44,7],[146,0,147,0],[148,0,149,0],[56,0,63,0],[64,0,65,0],[66,0,67,0],[107,0,108,0],[110,0,115,0],[116,0,119,0],[120,0,137,0],[138,0,145,0],[69,0,74,0],[75,0,78,0],[79,0,96,0],[97,0,104,0],[105,0,106,0]]}
["Statistik Sonnenenergie - Erhebung Energiespeicher"]
["Zusammenzug und Datenübertragung von der Firmendatei in das Rücklauffile SSOE"]
[null,null,null,null,"Export4",null,null,null,null,null,null,null,"Blatt Imp4 Rücklauffile: Spalten-Struktur und -Inhalt (04.01.2024)"]
[]
[null,"Kd-Nr.",null,{"$f":"MID(D7,SEARCH(\"[\",D7)+1,8)","v":"SSOE_202"},{"$f":"D5","v":"SSOE_202"},null,"Dateiname muss mit der 8-stell. Firmen-ID beginnen (Aktual. mit <F9>)",null,null,null,null,null,"Bereich Export4 =>","Kd-Nr.",null,1]
[null,"Inhalt",null,"Originalwert",{"$f":"\"Import\"","v":"Import"},null,null,null,null,null,null,null,null,"Inhalt",null,2]
[null,"Dateiname",null,{"$f":"CELL(\"dateiname\")","v":"https://swissolar-my.sharepoint.com/personal/datasync_swissolar_ch/Documents/Allgemein/40_Markt Politik/Markt/Statistik Sonnenenergie/2023/04_Formulare/[SSOE_2023_Formular_Speicher_dfi_20240112.xlsx]Li-Ionen"},{"$f":"D7","v":"https://swissolar-my.sharepoint.com/personal/datasync_swissolar_ch/Documents/Allgemein/40_Markt Politik/Markt/Statistik Sonnenenergie/2023/04_Formulare/[SSOE_2023_Formular_Speicher_dfi_20240112.xlsx]Li-Ionen"},null,null,null,null,null,null,null,null,"Dateiname",null,3]
[null,"Jahr",null,{"$f":"Andere!G1","v":2023},{"$f":"D8","v":2023},null,null,null,null,null,null,null,null,"Jahr",null,4]
[null,"Sprache",null,{"$f":"Sprache","v":"Deutsch"},{"$f":"D9","v":"Deutsch"},null,null,null,null,null,null,null,"Angaben der Firma","Sprache - Anz. Antw.",null,5]
[null,"Firma",null,{"$f":"Andere!B5","v":""},{"$f":"IF(D10=0,\"-\",D10)","v":""},null,null,null,null,null,null,null,null,"Firma",null,6]
[null,"Strasse",null,{"$f":"Andere!B6","v":""},{"$f":"IF(D11=0,\"-\",D11)","v":""},null,null,null,null,null,null,null,null,"Strasse",null,7]
[null,"PLZ/Ort",null,{"$f":"Andere!B7","v":""},"",null,null,null,null,null,null,null,null,"PLZ/Ort",null,8]
[null,"Kontaktperson",null,{"$f":"Andere!B8","v":""},"",null,null,null,null,null,null,null,null,"Kontaktperson",null,9]
[null,"Telefon",null,{"$f":"Andere!B9","v":""},"",null,null,null,null,null,null,null,null,"Telefon",null,10]
[null,"E-Mail",null,{"$f":"Andere!B10","v":""},"",null,null,null,null,null,null,null,null,"E-Mail",null,11]
[null,"Keine Anlagen",null,false,{"$f":"IF(D16,1,0)","v":0},null,null,null,null,null,null,null,null,"Keine Anl.",null,12]
[null,"Hersteller",null,false,{"$f":"IF(D17,1,0)","v":0},null,null,null,null,null,null,null,null,"Her-steller",null,13]
[null,"Importeur",null,false,0,null,null,null,null,null,null,null,null,"Impor-teur",null,14]
[null,"Handelsuntern.",null,false,0,null,null,null,null,null,null,null,null,"Handels-untern.",null,15]
[null,"Installateur",null,false,0,null,null,null,null,null,null,null,null,"Installa-teur",null,16]
[null,"Andere",null,false,0,null,null,null,null,null,null,null,null,"Andere",null,17]
[null,"Bemerkungen",null,null,null,null,null,null,null,null,null,null,"Daten zur Erhebung und zum Import","Bemerkungen",null,18]
[null,"Bearbeitet durch",null,null,null,null,null,null,null,null,null,null,null,"Bearb. durch",null,19]
[null,"Eingang",null,null,null,null,null,null,null,null,null,null,null,"Eingang",null,20]
[null,"Erfass./Import",null,{"$f":"NOW()","v":"2024-01-12T12:23:29.580"},{"$f":"D25","v":"2024-01-12T12:23:29.580"},null,null,null,null,null,null,null,null,"Erfass./Import",null,21]
[null,"Status",null,null,null,null,null,null,null,null,null,null,null,"Status der Erhebung",null,22]
[null,"Bemerkungen Firma",null,{"$f":"Andere!E40&\" // \"&Andere!E41&\" // \"&Andere!E42&\" // \"&Andere!E43&\" // \"&Andere!E44","v":" //  //  //  // "},{"$f":"D27","v":" //  //  //  // "},null,null,null,null,null,null,null,null,null,null,23]
[null,"Angaben zu",null,"Speichersysteme mit Basis","Li-Ionen",null,null,null,null,null,null,null,null,null,null,24]
[null,"Eigenproduktion","[kWh]",{"$f":"'Li-Ionen'!B17","v":0},{"$f":"D29","v":0},null,null,null,null,null,null,null,"Herkunft Li-Ionen Systeme","Eigenproduktion","[kWh]",25]
[null,"Bezug Schweiz","[kWh]",{"$f":"'Li-Ionen'!B18","v":0},{"$f":"D30","v":0},null,null,null,null,null,null,null,null,"Bezug Schweiz","[kWh]",26]
[null,"Import","[kWh]",{"$f":"'Li-Ionen'!B19","v":0},0,null,null,null,null,null,null,null,null,"Import","[kWh]",27]
[null,"Summe Herkunft","[kWh]",{"$f":"'Li-Ionen'!B20","v":0},0,null,null,null,null,null,null,null,null,"Summe Herkunft","[kWh]",28]
[null,"Export","[kWh]",{"$f":"'Li-Ionen'!B21","v":0},0,null,null,null,null,null,null,null,null,"Export","[kWh]",29]
[null,"Verkauf Schweiz","[kWp]",{"$f":"'Li-Ionen'!B22","v":0},0,null,null,null,null,null,null,null,null,"Verkauf Schweiz","[kWh]",30]
["Vertrieb","an Bauherrschaft","[kWh]",{"$f":"'Li-Ionen'!G17","v":0},{"$f":"D35","v":0},null,null,null,null,null,null,null,"Vertrieb","an Bauherrschaft","[kWh]",31]
[null,"an Installateur","[kWh]",{"$f":"'Li-Ionen'!G18","v":0},0,null,null,null,null,null,null,null,null,"an Installateur","[kWh]",32]
[null,"an Handel","[kWh]",{"$f":"'Li-Ionen'!G19","v":0},0,null,null,null,null,null,null,null,null,"an Handel","[kWh]",33]
[null,"Verkauf Schweiz","[kWp]",{"$f":"'Li-Ionen'!G20","v":0},0,null,null,null,null,null,null,null,null,"Verkauf Schweiz","[kWh]",34]
["Art der Anlagen (Netzverbund)","Summe Tab. 3a",null,{"$f":"SUM(D40:D47)","v":0},0,null,null,null,null,null,null,null,"Art der Anlagen (Netzverbund)","Summe Tab. 3a","[kWh]",35]
[null,"EFH","[kWh]",{"$f":"'Li-Ionen'!B29","v":0},0,null,null,null,null,null,null,null,null,"EFH","[kWh]",36]
[null,"MFH","[kWh]",{"$f":"'Li-Ionen'!B30","v":0},0,null,null,null,null,null,null,null,null,"MFH","[kWh]",37]
[null,"Ind. / Gew.","[kWh]",{"$f":"'Li-Ionen'!B31","v":0},0,null,null,null,null,null,null,null,null,"Ind. / Gew.","[kWh]",38]
[null,"Landwirtsch.","[kWh]",{"$f":"'Li-Ionen'!B32","v":0},0,null,null,null,null,null,null,null,null,"Landwirtsch.","[kWh]",39]
[null,"Dienstleistg","[kWh]",{"$f":"'Li-Ionen'!B33","v":0},0,null,null,null,null,null,null,null,null,"Dienstleistg","[kWh]",40]
[null,"öff. Dienste","[kWh]",{"$f":"'Li-Ionen'!B34","v":0},0,null,null,null,null,null,null,null,null,"öff. Dienste","[kWh]",41]
[null,"Verkehr","[kWh]",{"$f":"'Li-Ionen'!B35","v":0},0,null,null,null,null,null,null,null,null,"Verkehr","[kWh]",42]
[null,"Diverse","[kWp]",{"$f":"'Li-Ionen'!B36","v":0},0,null,null,null,null,null,null,null,null,"Diverse","[kWh]",43]
[null,"Summe Tab. 3b",null,{"$f":"SUM(D49:D56)","v":0},0,null,null,null,null,null,null,null,null,"Summe Tab. 3b","[Anzahl]",44]
[null,"EFH","[Anzahl]",{"$f":"'Li-Ionen'!C29","v":0},0,null,null,null,null,null,null,null,null,"EFH","[Anzahl]",45]
[null,"MFH","[Anzahl]",{"$f":"'Li-Ionen'!C30","v":0},0,null,null,null,null,null,null,null,null,"MFH","[Anzahl]",46]
[null,"Ind. / Gew.","[Anzahl]",{"$f":"'Li-Ionen'!C31","v":0},0,null,null,null,null,null,null,null,null,"Ind. / Gew.","[Anzahl]",47]
[null,"Landwirtsch.","[Anzahl]",{"$f":"'Li-Ionen'!C32","v":0},0,null,null,null,null,null,null,null,null,"Landwirtsch.","[Anzahl]",48]
[null,"Dienstleistg","[Anzahl]",{"$f":"'Li-Ionen'!C33","v":0},0,null,null,null,null,null,null,null,null,"Dienstleistg","[Anzahl]",49]
[null,"öff. Dienste","[Anzahl]",{"$f":"'Li-Ionen'!C34","v":0},0,null,null,null,null,null,null,null,null,"öff. Dienste","[Anzahl]",50]
[null,"Verkehr","[Anzahl]",{"$f":"'Li-Ionen'!C35","v":0},0,null,null,null,null,null,null,null,null,"Verkehr","[Anzahl]",51]
[null,"Diverse","[Anzahl]",{"$f":"'Li-Ionen'!C36","v":0},0,null,null,null,null,null,null,null,null,"Diverse","[Anzahl]",52]
["Anlagengrösse","bis 20 kWh","[kWh]",{"$f":"'Li-Ionen'!F29","v":0},0,null,null,null,null,null,null,null,"Anlagengrösse Li-Ion","bis 20 kWh","[kWh]",53]
[null,"bis 20 kWh","[Anzahl]",{"$f":"'Li-Ionen'!G29","v":0},0,null,null,null,null,null,null,null,null,"bis 20 kWh","[Anzahl]",54]
[null,"20 bis 100 kWh","[kWh]",{"$f":"'Li-Ionen'!F30","v":0},0,null,null,null,null,null,null,null,null,"20 bis 100 kWh","[kWh]",55]
[null,"20 bis 100 kWh","[Anzahl]",{"$f":"'Li-Ionen'!G30","v":0},0,null,null,null,null,null,null,null,null,"20 bis 100 kWh","[Anzahl]",56]
[null,"> 100 kWh","[kWh]",{"$f":"'Li-Ionen'!F31","v":0},0,null,null,null,null,null,null,null,null,"> 100 kWh","[kWh]",57]
[null,"> 100 kWh","[Anzahl]",{"$f":"'Li-Ionen'!G31","v":0},0,null,null,null,null,null,null,null,null,"> 100 kWh","[Anzahl]",58]
[null,"Summe Tab 5 [Kap.]","[KWh]",{"$f":"D57+D59+D61","v":0},{"$f":"D63","v":0},null,null,null,null,null,null,null,null,"Summe Tab. 5","[kWh]",59]
[null,"Summe Tab 5 [St.]","[Anzahl]",{"$f":"D58+D60+D62","v":0},0,null,null,null,null,null,null,null,null,"Summe Tab. 5 Anz.","[Anzahl]",60]
["2nd Life","2nd Life Systeme","[kWh]",{"$f":"'Li-Ionen'!B43","v":0},0,null,null,null,null,null,null,null,"2nd-Life","2nd-Life-Systeme","[kWh]",61]
[null,"2nd Life Systeme","[Anzahl]",{"$f":"'Li-Ionen'!C43","v":0},0,null,null,null,null,null,null,null,null,"2nd-Life-Systeme","[Anzahl]",62]
["Ersatz","Ersetzte Anlagen","[kWh]",{"$f":"'Li-Ionen'!B50","v":0},0,null,null,null,null,null,null,null,"Ersatz","Ersetzte Anlagen","[kWh]",63]
[null,"Ersetzte Anlagen","[Anzahl]",{"$f":"Andere!C50","v":0},0,null,null,null,null,null,null,null,null,"Ersetzte Anlagen","[Anzahl]",64]
[null,"Angaben zu",null,"Speichersysteme mit Basis","Salz",null,null,null,null,null,null,null,null,null,null,65]
[null,"Eigenproduktion","[kWh]",{"$f":"Salz!B17","v":0},{"$f":"D70","v":0},null,null,null,null,null,null,null,"Herkunft Salz-Systeme","Eigenproduktion","[kWh]",66]
[null,"Bezug Schweiz","[kWh]",{"$f":"Salz!B18","v":0},{"$f":"D71","v":0},null,null,null,null,null,null,null,null,"Bezug Schweiz","[kWh]",67]
[null,"Import","[kWh]",{"$f":"Salz!B19","v":0},{"$f":"D72","v":0},null,null,null,null,null,null,null,null,"Import","[kWh]",68]
[null,"Summe Herkunft","[kWh]",{"$f":"Salz!B20","v":0},0,null,null,null,null,null,null,null,null,"Summe Herkunft","[kWh]",69]
[null,"Export","[kWh]",{"$f":"Salz!B21","v":0},0,null,null,null,null,null,null,null,null,"Export","[kWh]",70]
[null,"Verkauf Schweiz","[kWp]",{"$f":"Salz!B22","v":0},0,null,null,null,null,null,null,null,null,"Verkauf Schweiz","[kWh]",71]
["Vertrieb","an Bauherrschaft","[kWh]",{"$f":"Salz!G17","v":0},{"$f":"D76","v":0},null,null,null,null,null,null,null,"Vertrieb","an Bauherrschaft","[kWh]",72]
[null,"an Installateur","[kWh]",{"$f":"Salz!G18","v":0},{"$f":"D77","v":0},null,null,null,null,null,null,null,null,"an Installateur","[kWh]",73]
[null,"an Handel","[kWh]",{"$f":"Salz!G19","v":0},0,null,null,null,null,null,null,null,null,"an Handel","[kWh]",74]
[null,"Verkauf Schweiz","[kWp]",{"$f":"Salz!G20","v":0},0,null,null,null,null,null,null,null,null,"Verkauf Schweiz","[kWh]",75]
["Art der Anlagen (Netzverbund)","Summe Tab. 3a",null,{"$f":"SUM(D81:D88)","v":0},0,null,null,null,null,null,null,null,"Art der Anlagen (Netzverbund)","Summe Tab. 3a","[kWh]",76]
[null,"EFH","[kWh]",{"$f":"Salz!B29","v":0},0,null,null,null,null,null,null,null,null,"EFH","[kWh]",77]
[null,"MFH","[kWh]",{"$f":"Salz!B30","v":0},0,null,null,null,null,null,null,null,null,"MFH","[kWh]",78]
[null,"Ind. / Gew.","[kWh]",{"$f":"Salz!B31","v":0},0,null,null,null,null,null,null,null,null,"Ind. / Gew.","[kWh]",79]
[null,"Landwirtsch.","[kWh]",{"$f":"Salz!B32","v":0},0,null,null,null,null,null,null,null,null,"Landwirtsch.","[kWh]",80]
[null,"Dienstleistg","[kWh]",{"$f":"Salz!B33","v":0},0,null,null,null,null,null,null,null,null,"Dienstleistg","[kWh]",81]
[null,"öff. Dienste","[kWh]",{"$f":"Salz!B34","v":0},0,null,null,null,null,null,null,null,null,"öff. Dienste","[kWh]",82]
[null,"Verkehr","[kWh]",{"$f":"Salz!B35","v":0},0,null,null,null,null,null,null,null,null,"Verkehr","[kWh]",83]
[null,"Diverse","[kWp]",{"$f":"Salz!B36","v":0},0,null,null,null,null,null,null,null,null,"Diverse","[kWh]",84]
[null,"Summe Tab. 3b",null,{"$f":"SUM(D90:D97)","v":0},0,null,null,null,null,null,null,null,null,"Summe Tab. 3b","[Anzahl]",85]
[null,"EFH","[Anzahl]",{"$f":"Salz!C29","v":0},0,null,null,null,null,null,null,null,null,"EFH","[Anzahl]",86]
[null,"MFH","[Anzahl]",{"$f":"Salz!C30","v":0},0,null,null,null,null,null,null,null,null,"MFH","[Anzahl]",87]
[null,"Ind. / Gew.","[Anzahl]",{"$f":"Salz!C31","v":0},0,null,null,null,null,null,null,null,null,"Ind. / Gew.","[Anzahl]",88]
[null,"Landwirtsch.","[Anzahl]",{"$f":"Salz!C32","v":0},0,null,null,null,null,null,null,null,null,"Landwirtsch.","[Anzahl]",89]
[null,"Dienstleistg","[Anzahl]",{"$f":"Salz!C33","v":0},0,null,null,null,null,null,null,null,null,"Dienstleistg","[Anzahl]",90]
[null,"öff. Dienste","[Anzahl]",{"$f":"Salz!C34","v":0},0,null,null,null,null,null,null,null,null,"öff. Dienste","[Anzahl]",91]
[null,"Verkehr","[Anzahl]",{"$f":"Salz!C35","v":0},0,null,null,null,null,null,null,null,null,"Verkehr","[Anzahl]",92]
[null,"Diverse","[Anzahl]",{"$f":"Salz!C36","v":0},0,null,null,null,null,null,null,null,null,"Diverse","[Anzahl]",93]
["Anlagengrösse","bis 20 kWh","[kWh]",{"$f":"Salz!F29","v":0},0,null,null,null,null,null,null,null,"Anlagengrösse Salz-Systeme","bis 20 kWh","[kWh]",94]
[null,"bis 20 kWh","[Anzahl]",{"$f":"Salz!G29","v":0},0,null,null,null,null,null,null,null,null,"bis 20 kWh","[Anzahl]",95]
[null,"20 bis 100 kWh","[kWh]",{"$f":"Salz!F30","v":0},0,null,null,null,null,null,null,null,null,"20 bis 100 kWh","[kWh]",96]
[null,"20 bis 100 kWh","[Anzahl]",{"$f":"Salz!G30","v":0},0,null,null,null,null,null,null,null,null,"20 bis 100 kWh","[Anzahl]",97]
[null,"> 100 kWh","[kWh]",{"$f":"Salz!F31","v":0},0,null,null,null,null,null,null,null,null,"> 100 kWh","[kWh]",98]
[null,"> 100 kWh","[Anzahl]",{"$f":"Salz!G31","v":0},0,null,null,null,null,null,null,null,null,"> 100 kWh","[Anzahl]",99]
[null,"Summe Tab 5 [Kap.]","[KWh]",{"$f":"D98+D100+D102","v":0},0,null,null,null,null,null,null,null,null,"Summe Tab. 5","[kWh]",100]
[null,"Summe Tab 5 [St.]","[Anzahl]",{"$f":"D99+D101+D103","v":0},0,null,null,null,null,null,null,null,null,"Summe Tab. 5 Anz.","[Anzahl]",101]
["2nd Life","2nd Life Systeme","[kWh]",{"$f":"Salz!B43","v":0},0,null,null,null,null,null,null,null,"2nd-Life","2nd-Life-Systeme","[kWh]",102]
[null,"2nd Life Systeme","[Anzahl]",{"$f":"Salz!C43","v":0},0,null,null,null,null,null,null,null,null,"2nd-Life-Systeme","[Anzahl]",103]
["Ersatz","Ersetzte Anlagen","[kWh]",{"$f":"Salz!B50","v":0},0,null,null,null,null,null,null,null,"Ersatz","Ersetzte Anlagen","[kWh]",104]
[null,"Ersetzte Anlagen","[Anzahl]",{"$f":"Salz!C50","v":0},0,null,null,null,null,null,null,null,null,"Ersetzte Anlagen","[Anzahl]",105]
[null,"Angaben zu",null,"Speichersysteme mit Basis","Blei und andere",null,null,null,null,null,null,null,null,null,null,106]
[null,"Eigenproduktion","[kWh]",{"$f":"Andere!B17","v":0},{"$f":"D111","v":0},null,null,null,null,null,null,null,"Herkunft Andere Systeme","Eigenproduktion","[kWh]",107]
[null,"Bezug Schweiz","[kWh]",{"$f":"Andere!B18","v":0},{"$f":"D112","v":0},null,null,null,null,null,null,null,null,"Bezug Schweiz","[kWh]",108]
[null,"Import","[kWh]",{"$f":"Andere!B19","v":0},{"$f":"D113","v":0},null,null,null,null,null,null,null,null,"Import","[kWh]",109]
[null,"Summe Herkunft","[kWh]",{"$f":"Andere!B20","v":0},0,null,null,null,null,null,null,null,null,"Summe Herkunft","[kWh]",110]
[null,"Export","[kWh]",{"$f":"Andere!B21","v":0},0,null,null,null,null,null,null,null,null,"Export","[kWh]",111]
[null,"Verkauf Schweiz","[kWp]",{"$f":"Andere!B22","v":0},0,null,null,null,null,null,null,null,null,"Verkauf Schweiz","[kWh]",112]
["Vertrieb","an Bauherrschaft","[kWh]",{"$f":"Andere!G17","v":0},{"$f":"D117","v":0},null,null,null,null,null,null,null,"Vertrieb","an Bauherrschaft","[kWh]",113]
[null,"an Installateur","[kWh]",{"$f":"Andere!G18","v":0},{"$f":"D118","v":0},null,null,null,null,null,null,null,null,"an Installateur","[kWh]",114]
[null,"an Handel","[kWh]",{"$f":"Andere!G19","v":0},0,null,null,null,null,null,null,null,null,"an Handel","[kWh]",115]
[null,"Verkauf Schweiz","[kWp]",{"$f":"Andere!G20","v":0},0,null,null,null,null,null,null,null,null,"Verkauf Schweiz","[kWh]",116]
["Art der Anlagen (Netzverbund)","Summe Tab. 3a",null,{"$f":"SUM(D122:D129)","v":0},0,null,null,null,null,null,null,null,"Art der Anlagen (Netzverbund)","Summe Tab. 3a","[kWh]",117]
[null,"EFH","[kWh]",{"$f":"Andere!B29","v":0},0,null,null,null,null,null,null,null,null,"EFH","[kWh]",118]
[null,"MFH","[kWh]",{"$f":"Andere!B30","v":0},0,null,null,null,null,null,null,null,null,"MFH","[kWh]",119]
[null,"Ind. / Gew.","[kWh]",{"$f":"Andere!B31","v":0},0,null,null,null,null,null,null,null,null,"Ind. / Gew.","[kWh]",120]
[null,"Landwirtsch.","[kWh]",{"$f":"Andere!B32","v":0},0,null,null,null,null,null,null,null,null,"Landwirtsch.","[kWh]",121]
[null,"Dienstleistg","[kWh]",{"$f":"Andere!B33","v":0},0,null,null,null,null,null,null,null,null,"Dienstleistg","[kWh]",122]
[null,"öff. Dienste","[kWh]",{"$f":"Andere!B34","v":0},0,null,null,null,null,null,null,null,null,"öff. Dienste","[kWh]",123]
[null,"Verkehr","[kWh]",{"$f":"Andere!B35","v":0},0,null,null,null,null,null,null,null,null,"Verkehr","[kWh]",124]
[null,"Diverse","[kWp]",{"$f":"Andere!B36","v":0},0,null,null,null,null,null,null,null,null,"Diverse","[kWh]",125]
[null,"Summe Tab. 3b",null,{"$f":"SUM(D131:D138)","v":0},0,null,null,null,null,null,null,null,null,"Summe Tab. 3b","[Anzahl]",126]
[null,"EFH","[Anzahl]",{"$f":"Andere!C29","v":0},0,null,null,null,null,null,null,null,null,"EFH","[Anzahl]",127]
[null,"MFH","[Anzahl]",{"$f":"Andere!C30","v":0},0,null,null,null,null,null,null,null,null,"MFH","[Anzahl]",128]
[null,"Ind. / Gew.","[Anzahl]",{"$f":"Andere!C31","v":0},0,null,null,null,null,null,null,null,null,"Ind. / Gew.","[Anzahl]",129]
[null,"Landwirtsch.","[Anzahl]",{"$f":"Andere!C32","v":0},0,null,null,null,null,null,null,null,null,"Landwirtsch.","[Anzahl]",130]
[null,"Dienstleistg","[Anzahl]",{"$f":"Andere!C33","v":0},0,null,null,null,null,null,null,null,null,"Dienstleistg","[Anzahl]",131]
[null,"öff. Dienste","[Anzahl]",{"$f":"Andere!C34","v":0},0,null,null,null,null,null,null,null,null,"öff. Dienste","[Anzahl]",132]
[null,"Verkehr","[Anzahl]",{"$f":"Andere!C35","v":0},0,null,null,null,null,null,null,null,null,"Verkehr","[Anzahl]",133]
[null,"Diverse","[Anzahl]",{"$f":"Andere!C36","v":0},0,null,null,null,null,null,null,null,null,"Diverse","[Anzahl]",134]
["Anlagengrösse","bis 20 kWh","[kWh]",{"$f":"Andere!F29","v":0},0,null,null,null,null,null,null,null,"Anlagengrösse Andere Systeme","bis 20 kWh","[kWh]",135]
[null,"bis 20 kWh","[Anzahl]",{"$f":"Andere!G29","v":0},0,null,null,null,null,null,null,null,null,"bis 20 kWh","[Anzahl]",136]
[null,"20 bis 100 kWh","[kWh]",{"$f":"Andere!F30","v":0},0,null,null,null,null,null,null,null,null,"20 bis 100 kWh","[kWh]",137]
[null,"20 bis 100 kWh","[Anzahl]",{"$f":"Andere!G30","v":0},0,null,null,null,null,null,null,null,null,"20 bis 100 kWh","[Anzahl]",138]
[null,"> 100 kWh","[kWh]",{"$f":"Andere!F31","v":0},0,null,null,null,null,null,null,null,null,"> 100 kWh","[kWh]",139]
[null,"> 100 kWh","[Anzahl]",{"$f":"Andere!G31","v":0},0,null,null,null,null,null,null,null,null,"> 100 kWh","[Anzahl]",140]
[null,"Summe Tab 5 [kWh]","[kWh]",{"$f":"D139+D141+D143","v":0},0,null,null,null,null,null,null,null,null,"Summe Tab. 5","[kWh]",141]
[null,"Summe Tab 5 [St.]","[Anzahl]",{"$f":"D140+D142+D144","v":0},0,null,null,null,null,null,null,null,null,"Summe Tab. 5 Anz.","[Anzahl]",142]
["2nd Life","2nd Life Systeme","[kWh]",{"$f":"Andere!B43","v":0},0,null,null,null,null,null,null,null,"2nd-Life","2nd-Life-Systeme","[kWh]",143]
[null,"2nd Life Systeme","[Anzahl]",{"$f":"Andere!C43","v":0},0,null,null,null,null,null,null,null,null,"2nd-Life-Systeme","[Anzahl]",144]
["Ersatz","Ersetzte Anlagen","[kWh]",{"$f":"Andere!B50","v":0},0,null,null,null,null,null,null,null,"Ersatz","Ersetzte Anlagen","[kWh]",145]
[null,"Ersetzte Anlagen","[Anzahl]",{"$f":"Andere!C50","v":0},0,null,null,null,null,null,null,null,null,"Ersetzte Anlagen","[Anzahl]",146]
[null,"Leerfeld 1",null,null,null,null,null,null,null,null,null,null,null,"Leerfeld 1",null,147]
[null,"Leerfeld 2",null,null,null,null,null,null,null,null,null,null,null,"Leerfeld 2",null,148]
[null,"Leerfeld 3",null,null,null,null,null,null,null,null,null,null,null,"Leerfeld 3",null,149]
[null,"Leerfeld 4",null,null,null,null,null,null,null,null,null,null,null,"Leerfeld 4",null,150]
[null,"Leerfeld 5",null,null,"Last",null,null,null,null,null,null,null,null,"Leerfeld 5",null,151]
[null,"Version",null,null,{"$f":"Referenz!B2","v":"1.0"},null,null,null,null,null,null,null,null,"Formular-Version",null,152]
[null,null,null,null,null,null,null,null,null,null,null,null,null,null,null,153]
[null,null,null,null,"mögliche (Export-)Stati:",null,null,null,null,null,null,null,"Reserve-Spalten für Auswertung",null,null,154]
[null,null,null,null,"Daten für Import plausibel",null,null,null,null,null,null,null,null,null,null,155]
[null,null,null,null,"Detailabklärung im Gang",null,null,null,null,null,null,null,null,null,null,156]
[null,null,null,null,"Erfassung im Gang",null,null,null,null,null,null,null,null,"Res.",null,157]
[null,null,null,null,"Alle Daten verarbeitet"]
[null,null,null,null,"nicht mehr anschreiben"]
[null,null,null,null,"Neu"]
[null,null,null,null,"wieder aufnehmen"]
[]
[]
[null,null,null,null,"mögliche Funktionen (Speicher/PVT)):"]
[null,null,null,null,"Installateur"]
[null,null,null,null,"Systemhaus"]

{"sheet":"Referenz","index":5,"n_rows":37,"n_cols":5,"rows_kept":37,"cut":false,"hidden":true,"merged":[]}
["Referenztabelle"]
["Version","1.0"]
["Jahr",2023]
["Einreichedatum","2024-02-09"]
["Version","2024-01-12"]
[]
["Prüfungen"]
["Blatt Li-Ionen"]
[null,{"$f":"ROUND('Li-Ionen'!B22,0)=ROUND('Li-Ionen'!G20,0)","v":true},"Total Tabelle 1 <> Total Tabelle 2"]
[null,{"$f":"ROUND('Li-Ionen'!G17,0)=ROUND('Li-Ionen'!B37,0)","v":true},"Tabelle 2 an Bauherrschaft <> (Kapazität Total Tabelle 3)"]
[null,{"$f":"ROUND('Li-Ionen'!B37,0)=ROUND('Li-Ionen'!F32,0)","v":true},"Kapazität: Total Tabelle 3 <> Total Anlagen Tabelle 5"]
[null,{"$f":"ROUND('Li-Ionen'!C37,0)=ROUND('Li-Ionen'!G32,0)","v":true},"Anzahl Anlagen: Total Tabelle 3 <> Total Tabelle 5"]
[null,{"$f":"OR(SUM('Li-Ionen'!B22,'Li-Ionen'!B37,'Li-Ionen'!C37,'Li-Ionen'!B43,'Li-Ionen'!C43,'Li-Ionen'!F32,'Li-Ionen'!G32)=0,AND(SUM('Li-Ionen'!B22,'Li-Ionen'!B37,'Li-Ionen'!C37,'Li-Ionen'!B43,'Li-Ionen'!C43,'Li-Ionen'!F32,'Li-Ionen'!G32)<>0,Export!E16=0))","v":true},"Generelle Eingabe in A11 falsch"]
[null,{"$f":"'Li-Ionen'!J27=0","v":true},"Die durchschnittliche Anlagengrösse ist ausserhalb der angegebenen Werte"]
[]
["Blatt Salz"]
[null,{"$f":"ROUND(Salz!B22,0)=ROUND(Salz!G20,0)","v":true},"Total Tabelle 1 <> Total Tabelle 2"]
[null,{"$f":"ROUND(Salz!G17,0)=ROUND(Salz!B37,0)","v":true},"Tabelle 2 an Bauherrschaft <> (Kapazität Total Tabelle 3)"]
[null,{"$f":"ROUND(Salz!B37,0)=ROUND(Salz!F32,0)","v":true},"Kapazität: Total Tabelle 3 <> Total Anlagen Tabelle 5"]
[null,{"$f":"ROUND(Salz!C37,0)=ROUND(Salz!G32,0)","v":true},"Anzahl Anlagen: Total Tabelle 3 <> Total Tabelle 5"]
[null,{"$f":"OR(SUM(Salz!B22,Salz!B37,Salz!C37,Salz!B43,Salz!C43,Salz!F32,Salz!G32)=0,AND(SUM(Salz!B22,Salz!B37,Salz!C37,Salz!B43,Salz!C43,Salz!F32,Salz!G32)<>0,Export!E16=0))","v":true},"Generelle Eingabe in A11 falsch"]
[null,{"$f":"Salz!J27=0","v":true},"Die durchschnittliche Anlagengrösse ist ausserhalb der angegebenen Werte"]
[]
["Blatt Andere",{"$f":"ROUND(Andere!B22,0)=ROUND(Andere!G20,0)","v":true},"Total Tabelle 1 <> Total Tabelle 2"]
[null,{"$f":"ROUND(Andere!G17,0)=ROUND(Andere!B37,0)","v":true},"Tabelle 2 an Bauherrschaft <> (Kapazität Total Tabelle 3)"]
[null,{"$f":"ROUND(Andere!B37,0)=ROUND(Andere!F32,0)","v":true},"Kapazität: Total Tabelle 3 <> Total Anlagen Tabelle 5"]
[null,{"$f":"ROUND(Andere!C37,0)=ROUND(Andere!G32,0)","v":true},"Anzahl Anlagen: Total Tabelle 3 <> Total Tabelle 5"]
[null,{"$f":"OR(SUM(Andere!B22,Andere!B37,Andere!C37,Andere!B43,Andere!C43,Andere!F32,Andere!G32)=0,AND(SUM(Andere!B22,Andere!B37,Andere!C37,Andere!B43,Andere!C43,Andere!F32,Andere!G32)<>0,Export!E16=0))","v":true},"Generelle Eingabe in A11 falsch"]
[null,{"$f":"Andere!J27=0","v":true},"Die durchschnittliche Anlagengrösse ist ausserhalb der angegebenen Werte"]
[]
[]
["History Versionen","0.5","Version für SSOE 2023 - erster Entwurf",null,"HE"]
[null,"0.6","Version für SSOE 2023 - Ergänzung Exportseiten und Kontrolle Verweise der Texte/Ergänzung Ersatzanlagen",null,"TH"]
[null,"0.7","Version für SSOE 2023 - Testing und Prüfungen ausdifferenziert",null,"HE"]
[null,"0.8","Übersetzungen eingefügt",null,"HE"]
[null,"0.9","Version für SSOE 2023 - bereinigtes Formular für Testing / Prüfung verfeinert",null,"TH"]
[null,"1.0","Version für SSOE 2023 - Tab Export für Anlagegrössen korrigiert, Adresse nur einmal , final für Versand",null,"TH, HE"]